Workbook

Sheet Strategy
B2: Please fill-in only the yellow cells! | E2: There are provisions to try to different combinations up to 4 trades in Futures, Cash and Options. | O2: Please do not insert or delete any row / column!
E3: Some bug will still be there, please let me know if you find any error.
B5: Stock Options | G5: Pay-off or "Profit and Loss" Table | Q5: fnoAction | T5: Securities Transaction Tax | U5: =44.74/44744 -> 0.0009999106025
B6: Net over-head on cash | C6: ITC | D6: Lot Size | E6: Strike X | F6: 1 | M6: YESBANK | N6: Lot Size | O6: Strike X | P6: 1 | Q6: Buy Cash | T6: Service Tax | U6: =12.74/44744 -> 0.0002847309136
B7: =ROUND(1-44589.59/44744, 5) -> 0.00345 | D7: =IF(C6="BAKNIFTY", 30, VLOOKUP(C6, LotSize, 2, FALSE)) -> 2400 | E7: Strike Interval | F7: =VLOOKUP(C6, fnoStepValue, 2, FALSE) -> 10 | N7: =VLOOKUP(M6, LotSize, 2, FALSE) -> 1750 | O7: Strike Interval | P7: =VLOOKUP(M6, fnoStepValue, 2, FALSE) -> 10 | Q7: Buy Put | T7: Education Cess | U7: 0
B8: @ Brokerage 0.20% | C8: Buy Cash | D8: Sell Call | M8: Buy Cash | N8: Sell Call | O8: Sell Put | Q8: Buy Call | T8: Higher Education Cess | U8: 0
B9: CMP | C9: 264 | D9: 280 | F9: =IF(F8="", "", $C$9) ->  | M9: 310 | N9: =IF(N8="", "", $M$9) -> 310 | O9: =IF(O8="", "", $M$9) -> 310 | P9: =IF(P8="", "", $M$9) ->  | Q9: Sell Put | T9: Swach Bharat Cess | U9: =0.46/44744 -> 1.028070803e-05
B10: Trade Quantity | C10: 610 | D10: 2400 | M10: 100 | N10: 340 | O10: 280 | Q10: Sell Call | T10: Krishi Kalyan Cess | U10: =0.46/44744 -> 1.028070803e-05
B11: Strike/ B / S Price | C11: 278 | D11: 300 | M11: 312 | N11: 316 | O11: 330 | Q11: Buy FUTR | T11: Exchange Transaction Charges | U11: =1.52/44744 -> 3.397103522e-05
B12: Premium of 1st Leg | C12: 0 | D12: 2400 | M12: 0 | N12: =40*N10 -> 13600 | O12: =4*O10 -> 1120 | Q12: Sell FUTR | T12: Stamp Duty | U12: 5
B13: Sq-off Premium | C13: 0 | D13: 0 | M13: 0 | N13: 0 | O13: 0
B14: Implied or Hist. Vol. | C14: 0.3 | D14: =IF(D$8="", "", $C14) -> 0.3 | E14: =IF(E$8="", "", $C14) ->  | F14: =IF(F$8="", "", $C14) ->  | M14: 0.3 | N14: =IF(N$8="", "", $M14) -> 0.3 | O14: =IF(O$8="", "", $M14) -> 0.3 | P14: =IF(P$8="", "", $M14) -> 
B15: Dividend Yield | C15: 0 | E15: IR on Margin: | F15: 0.18 | O15: IR on Margin: | P15: 0.18
B16: Risk-Reward Ratio | C16: =IF(ABS(MIN(B45:H45))=0, "", MAX(B45:H45)/ABS(MIN(B45:H45))) -> 1.021336938 | D16: probability | E16: =ABS(SUM(C19:F19)) -> 0.2479786667 | M16: =IF(ABS(MIN(Q36:Q42))=0, "", MAX(Q36:Q42)/ABS(MIN(Q36:Q42))) -> 7.647492921 | N16: probability | O16: =ABS(SUM(M19:P19)) -> 0.7937048571
B17: Theoretical Premium | C17: =IF(OR(C$8="", C$11=""),"", IF(OR(C$8="Buy Call", C$8="Sell Call"), premCall(C$9, C11, t, RFR, C$14, DYX), IF(OR(C$8="Buy Put", C$8="Sell Put"), premPut(C$9, C11, t, RFR, C$14, DYX), IF(OR(C$8="Buy Cash", C$8="Buy FUTR"), 0, 0)))) -> 0 | D17: =IF(OR(D$8="", D$11=""),"", IF(OR(D$8="Buy Call", D$8="Sell Call"), premCall(D$9, D11, t, RFR, D$14, DYX), IF(OR(D$8="Buy Put", D$8="Sell Put"), premPut(D$9, D11, t, RFR, D$14, DYX), IF(OR(D$8="Buy Cash", D$8="Buy FUTR"), 0, 0)))) -> 0.0151 | E17: =IF(OR(E$8="", E$11=""),"", IF(OR(E$8="Buy Call", E$8="Sell Call"), premCall(E$9, E11, t, RFR, E$14, DYX), IF(OR(E$8="Buy Put", E$8="Sell Put"), premPut(E$9, E11, t, RFR, E$14, DYX), IF(OR(E$8="Buy Cash", E$8="Buy FUTR"), 0, 0)))) ->  | F17: =IF(OR(F$8="", F$11=""),"", IF(OR(F$8="Buy Call", F$8="Sell Call"), premCall(F$9, F11, t, RFR, F$14, DYX), IF(OR(F$8="Buy Put", F$8="Sell Put"), premPut(F$9, F11, t, RFR, F$14, DYX), IF(OR(F$8="Buy Cash", F$8="Buy FUTR"), 0, 0)))) ->  | M17: =IF(OR(M$8="", M$11=""),"", IF(OR(M$8="Buy Call", M$8="Sell Call"), premCall(M$9, M11, t, RFR, M$14, DYX), IF(OR(M$8="Buy Put", M$8="Sell Put"), premPut(M$9, M11, t, RFR, M$14, DYX), IF(OR(M$8="Buy Cash", M$8="Buy FUTR"), 0, 0)))) -> 0 | N17: =IF(OR(N$8="", N$11=""),"", IF(OR(N$8="Buy Call", N$8="Sell Call"), premCall(N$9, N11, t, RFR, N$14, DYY), IF(OR(N$8="Buy Put", N$8="Sell Put"), premPut(N$9, N11, t, RFR, N$14, DYY), IF(OR(N$8="Buy Cash", N$8="Buy FUTR"), 0, 0)))) -> 1.2513 | O17: =IF(OR(O$8="", O$11=""),"", IF(OR(O$8="Buy Call", O$8="Sell Call"), premCall(O$9, O11, t, RFR, O$14, DYY), IF(OR(O$8="Buy Put", O$8="Sell Put"), premPut(O$9, O11, t, RFR, O$14, DYY), IF(OR(O$8="Buy Cash", O$8="Buy FUTR"), 0, 0)))) -> 19.838 | P17: =IF(OR(P$8="", P$11=""),"", IF(OR(P$8="Buy Call", P$8="Sell Call"), premCall(P$9, P11, t, RFR, P$14, DYY), IF(OR(P$8="Buy Put", P$8="Sell Put"), premPut(P$9, P11, t, RFR, P$14, DYY), IF(OR(P$8="Buy Cash", P$8="Buy FUTR"), 0, 0)))) -> 
B18: ="Theta= " & TEXT(ROUND(SUM(C18:F18), 4), "0.000") -> Theta= 0.023 | C18: =IF(OR(C$8="", C$11=""), "", IF(C$8="Buy Call", calltheta(C$9,C$11,t,RFR,DYX), IF(C$8="Sell Call",-calltheta(C$9,C$11,t, RFR,C$14,DYX), IF(C$8="Buy Put",PutTheta(C$9,C$11,t,RFR,C$14,DYX), IF(C$8="Sell Put", -PutTheta(C$9,C$11,t,RFR,C$14,DYX), 0))))) -> 0 | D18: =IF(OR(D$8="", D$11=""), "", IF(D$8="Buy Call", calltheta(D$9,D$11,t,RFR,D$14,DYX), IF(D$8="Sell Call",-calltheta(D$9,D$11,t, RFR,D$14,DYX), IF(D$8="Buy Put",PutTheta(D$9,D$11,t,RFR,D$14,DYX), IF(D$8="Sell Put", -PutTheta(D$9,D$11,t,RFR,D$14,DYX), 0))))) -> 0.022519 | E18: =IF(OR(E$8="", E$11=""), "", IF(E$8="Buy Call", calltheta(E$9,E$11,t,RFR,E$14,DYX), IF(E$8="Sell Call",-calltheta(E$9,E$11,t, RFR,E$14,DYX), IF(E$8="Buy Put",PutTheta(E$9,E$11,t,RFR,E$14,DYX), IF(E$8="Sell Put", -PutTheta(E$9,E$11,t,RFR,E$14,DYX), 0))))) ->  | F18: =IF(OR(F$8="", F$11=""), "", IF(F$8="Buy Call", calltheta(F$9,F$11,t,RFR,F$14,DYX), IF(F$8="Sell Call",-calltheta(F$9,F$11,t, RFR,F$14,DYX), IF(F$8="Buy Put",PutTheta(F$9,F$11,t,RFR,F$14,DYX), IF(F$8="Sell Put", -PutTheta(F$9,F$11,t,RFR,F$14,DYX), 0))))) ->  | M18: =IF(OR(M$8="", M$11=""), "", IF(M$8="Buy Call", calltheta(M$9,M$11,t,RFR,M$14,DYY), IF(M$8="Sell Call",-calltheta(M$9,M$11,t, RFR,M$14,DYY), IF(M$8="Buy Put",PutTheta(M$9,M$11,t,RFR,M$14,DYY), IF(M$8="Sell Put", -PutTheta(M$9,M$11,t,RFR,M$14,DYY), 0))))) -> 0 | N18: =IF(OR(N$8="", N$11=""), "", IF(N$8="Buy Call", calltheta(N$9,N$11,t,RFR,N$14,DYY), IF(N$8="Sell Call",-calltheta(N$9,N$11,t, RFR,N$14,DYY), IF(N$8="Buy Put",PutTheta(N$9,N$11,t,RFR,N$14,DYY), IF(N$8="Sell Put", -PutTheta(N$9,N$11,t,RFR,N$14,DYY), 0))))) -> 0.463292 | O18: =IF(OR(O$8="", O$11=""), "", IF(O$8="Buy Call", calltheta(O$9,O$11,t,RFR,O$14,DYY), IF(O$8="Sell Call",-calltheta(O$9,O$11,t, RFR,O$14,DYY), IF(O$8="Buy Put",PutTheta(O$9,O$11,t,RFR,O$14,DYY), IF(O$8="Sell Put", -PutTheta(O$9,O$11,t,RFR,O$14,DYY), 0))))) -> -0.021341 | P18: =IF(OR(P$8="", P$11=""), "", IF(P$8="Buy Call", calltheta(P$9,P$11,t,RFR,P$14,DYY), IF(P$8="Sell Call",-calltheta(P$9,P$11,t, RFR,P$14,DYY), IF(P$8="Buy Put",PutTheta(P$9,P$11,t,RFR,P$14,DYY), IF(P$8="Sell Put", -PutTheta(P$9,P$11,t,RFR,P$14,DYY), 0))))) ->  | Q18: ="Theta= " & TEXT(ROUND(SUM(M18:P18), 4), "0.000") -> Theta= 0.442
B19: ="Delta= " & TEXT(ROUND(SUM(C19:F19), 4), "0.000") -> Delta= 0.248 | C19: =IF(OR(C$8="", C$11=""), "", IF(C$8="Buy Call", CallDelta(C$9, C$11, t, RFR, C$14, DYX), IF(C$8="Sell Call", -CallDelta(C$9, C$11,t,RFR, C$14, DYX), IF(C$8="Buy Put", Putdelta(C$9, C$11, t, RFR, C$14, DYX), IF(C$8="Sell Put", -Putdelta(C$9, C$11, t, RFR,C$14, DYX), IF(OR(C$8="Buy Cash", C$8="Buy FUTR"), 1*C10/$D$7, -1*C10/$D$7)))))) -> 0.2541666667 | D19: =IF(OR(D$8="", D$11=""), "", IF(D$8="Buy Call", CallDelta(D$9, D$11, t, RFR, D$14, DYX), IF(D$8="Sell Call", -CallDelta(D$9, D$11,t,RFR, D$14, DYX), IF(D$8="Buy Put", Putdelta(D$9, D$11, t, RFR, D$14, DYX), IF(D$8="Sell Put", -Putdelta(D$9, D$11, t, RFR, D$14, DYX), IF(OR(D$8="Buy Cash", D$8="Buy FUTR"), 1*D10/$D$7, -1*D10/$D$7)))))) -> -0.006188 | E19: =IF(OR(E$8="", E$11=""), "", IF(E$8="Buy Call", CallDelta(E$9, E$11, t, RFR, E$14, DYX), IF(E$8="Sell Call", -CallDelta(E$9, E$11,t,RFR, E$14, DYX), IF(E$8="Buy Put", Putdelta(E$9, E$11, t, RFR, E$14, DYX), IF(E$8="Sell Put", -Putdelta(E$9, E$11, t, RFR, E$14, DYX), IF(OR(E$8="Buy Cash", E$8="Buy FUTR"), 1*E10/$D$7, -1*E10/$D$7)))))) ->  | F19: =IF(OR(F$8="", F$11=""), "", IF(F$8="Buy Call", CallDelta(F$9, F$11, t, RFR, F$14, DYX), IF(F$8="Sell Call", -CallDelta(F$9, F$11,t,RFR, F$14, DYX), IF(F$8="Buy Put", Putdelta(F$9, F$11, t, RFR, F$14, DYX), IF(F$8="Sell Put", -Putdelta(F$9, F$11, t, RFR, F$14, DYX), IF(OR(F$8="Buy Cash", F$8="Buy FUTR"), 1*F10/$D$7, -1*F10/$D$7)))))) ->  | M19: =IF(OR(M$8="", M$11=""), "", IF(M$8="Buy Call", CallDelta(M$9, M$11, t, RFR, M$14, DYY), IF(M$8="Sell Call", -CallDelta(M$9, M$11,t,RFR, M$14, DYY), IF(M$8="Buy Put", Putdelta(M$9, M$11, t, RFR, M$14, DYY), IF(M$8="Sell Put", -Putdelta(M$9, M$11, t, M$14, DYY), IF(OR(M$8="Buy Cash", M$8="Buy FUTR"), 1*M10/N$7, -1*M10/N$7)))))) -> 0.05714285714 | N19: =IF(OR(N$8="", N$11=""), "", IF(N$8="Buy Call", CallDelta(N$9, N$11, t, RFR, N$14, DYX), IF(N$8="Sell Call", -CallDelta(N$9, N$11,t,RFR, N$14, DYX), IF(N$8="Buy Put", Putdelta(N$9, N$11, t, RFR, N$14, DYX), IF(N$8="Sell Put", -Putdelta(N$9, N$11, t, RFR, N$14, DYX), IF(OR(N$8="Buy Cash", N$8="Buy FUTR"), 1*N10/$D$7, -1*N10/$D$7)))))) -> -0.251628 | O19: =IF(OR(O$8="", O$11=""), "", IF(O$8="Buy Call", CallDelta(O$9, O$11, t, RFR, O$14, DYX), IF(O$8="Sell Call", -CallDelta(O$9, O$11,t,RFR, O$14, DYX), IF(O$8="Buy Put", Putdelta(O$9, O$11, t, RFR, O$14, DYX), IF(O$8="Sell Put", -Putdelta(O$9, O$11, t, RFR, O$14, DYX), IF(OR(O$8="Buy Cash", O$8="Buy FUTR"), 1*O10/$D$7, -1*O10/$D$7)))))) -> 0.98819 | P19: =IF(OR(P$8="", P$11=""), "", IF(P$8="Buy Call", CallDelta(P$9, P$11, t, RFR, P$14, DYY), IF(P$8="Sell Call", -CallDelta(P$9, P$11,t,RFR, P$14, DYY), IF(P$8="Buy Put", Putdelta(P$9, P$11, t, RFR, P$14, DYY), IF(P$8="Sell Put", -Putdelta(P$9, P$11, t, P$14, DYY), IF(OR(P$8="Buy Cash", P$8="Buy FUTR"), 1*P10/Q$7, -1*P10/Q$7)))))) ->  | Q19: ="Delta= " & TEXT(ROUND(SUM(M19:P19), 4), "0.000") -> Delta= 0.794
B20: ="Vega= " & TEXT(ROUND(SUM(C20:F20),4), "0.000") -> Vega= 0.004 | C20: =IF(OR(C$8="", C$11=""), "", IF(OR(C$8="Buy Call",C$8="Sell Call",C$8="Buy Put",C$8="Sell Put"),Vega(C$9,C11,t,RFR,C$14,DYX),IF(OR(C$8="Buy Cash",C$8="Buy FUTR"),0))) -> 0 | D20: =IF(OR(D$8="", D$11=""), "", IF(OR(D$8="Buy Call",D$8="Sell Call",D$8="Buy Put",D$8="Sell Put"),Vega(D$9,D11,t,RFR,D$14,DYX),IF(OR(D$8="Buy Cash",D$8="Buy FUTR"),0))) -> 0.004436 | E20: =IF(OR(E$8="", E$11=""), "", IF(OR(E$8="Buy Call",E$8="Sell Call",E$8="Buy Put",E$8="Sell Put"),Vega(E$9,E11,t,RFR,E$14,DYX),IF(OR(E$8="Buy Cash",E$8="Buy FUTR"),0))) ->  | F20: =IF(OR(F$8="", F$11=""), "", IF(OR(F$8="Buy Call",F$8="Sell Call",F$8="Buy Put",F$8="Sell Put"),Vega(F$9,F11,t,RFR,F$14,DYX),IF(OR(F$8="Buy Cash",F$8="Buy FUTR"),0))) ->  | M20: =IF(OR(M$8="", M$11=""), "", IF(OR(M$8="Buy Call",M$8="Sell Call",M$8="Buy Put",M$8="Sell Put"),Vega(M$9,M11,t,RFR,M$14,DYY),IF(OR(M$8="Buy Cash",M$8="Buy FUTR"),0))) -> 0 | N20: =IF(OR(N$8="", N$11=""), "", IF(OR(N$8="Buy Call",N$8="Sell Call",N$8="Buy Put",N$8="Sell Put"),Vega(N$9,N11,t,RFR,N$14,DYY),IF(OR(N$8="Buy Cash",N$8="Buy FUTR"),0))) -> 0.089617 | O20: =IF(OR(O$8="", O$11=""), "", IF(OR(O$8="Buy Call",O$8="Sell Call",O$8="Buy Put",O$8="Sell Put"),Vega(O$9,O11,t,RFR,O$14,DYY),IF(OR(O$8="Buy Cash",O$8="Buy FUTR"),0))) -> 0.008657 | P20: =IF(OR(P$8="", P$11=""), "", IF(OR(P$8="Buy Call",P$8="Sell Call",P$8="Buy Put",P$8="Sell Put"),Vega(P$9,P11,t,RFR,P$14,DYY),IF(OR(P$8="Buy Cash",P$8="Buy FUTR"),0))) ->  | Q20: ="Vega = " & TEXT(ROUND(SUM(M20:P20),4), "0.000") -> Vega = 0.098
B21: ="Gamma= " & TEXT(ROUND(SUM(C21:F21),4), "0.000") -> Gamma= 0.002 | C21: =IF(OR(C$8="", C$11=""), "", IF(C8="Buy Cash", 0, Gamma(C$9, C11, t, RFR, C$14, DYX))) -> 0 | D21: =IF(OR(D$8="", D$11=""), "", IF(D8="Buy Cash", 0, Gamma(D$9, D11, t, RFR, D$14, DYX))) -> 0.002295 | E21: =IF(OR(E$8="", E$11=""), "", IF(E8="Buy Cash", 0, Gamma(E$9, E11, t, RFR, E$14, DYX))) ->  | F21: =IF(OR(F$8="", F$11=""), "", IF(F8="Buy Cash", 0, Gamma(F$9, F11, t, RFR, F$14, DYX))) ->  | M21: =IF(OR(M$8="", M$11=""), "", IF(M8="Buy Cash", 0, Gamma(M$9, M11, t, RFR, M$14, DYY))) -> 0 | N21: =IF(OR(N$8="", N$11=""), "", IF(N8="Buy Cash", 0, Gamma(N$9, N11, t, RFR, N$14, DYY))) -> 0.03782 | O21: =IF(OR(O$8="", O$11=""), "", IF(O8="Buy Cash", 0, Gamma(O$9, O11, t, RFR, O$14, DYY))) -> 0.003654 | P21: =IF(OR(P$8="", P$11=""), "", IF(P8="Buy Cash", 0, Gamma(P$9, P11, t, RFR, P$14, DYY))) ->  | Q21: ="Gamma= " & TEXT(ROUND(SUM(M21:P21),4), "0.000") -> Gamma= 0.042
B22: Spot Price at Sqr-Off | C22: =IF(C$8="", "", C23-F7*F6) -> 250 | D22: STCG Tax/Cess: | F22: 0.15 | M22: =IF(M$8="", "", M23-P7*P6) -> 290
C23: =IF(C$8="", "", C24-F$7*F6) -> 260 | D23: Income Tax Rate: | F23: 0 | M23: =IF(M$8="", "", M24-P$7*P6) -> 300
C24: =IF(C$8="", "", C25-F$7*F6) -> 270 | D24: Brokerage FUTURE: | F24: 0.0002 | M24: =IF(M$8="", "", M25-P$7*P6) -> 310
C25: =IF(C$8="", "", ROUND(AVERAGE(C9, C11:F11)/F7,0)*F7) -> 280 | D25: Brokerage OPTIONS: | F25: 50 | M25: =IF(M$8="", "", ROUND(AVERAGE(M9, M11:P11)/P7,0)*P7) -> 320
C26: =IF(C$8="", "", C25+F$7*F6) -> 290 | D26: Brokerage Delivery: | F26: 0.001 | M26: =IF(M$8="", "", M25+P$7*P6) -> 330
C27: =IF(C$8="", "", C26+F$7*F6) -> 300 | D27: Brokerage Intra-day: | F27: 0.0003 | M27: =IF(M$8="", "", M26+P$7*P6) -> 340
C28: =IF(C$8="", "", C27+F$7*F6) -> 310 | D28: Cess, S. Tax, STT factor: | F28: 1.2 | M28: =IF(M$8="", "", M27+P$7*P6) -> 350 | Q28: Total
C29: =IF(OR(C$8="", C$11=""), "", IF(C$8="Buy Cash", 0-(C$9*C$10*BrkgCASH*(1+sTax))-($C22*C$10*BrkgCASH*(1+sTax)), 0-IF($C22>C$11,2*BrkgOPTN*1.2,BrkgOPTN*1.2))) -> -364.96056 | D29: -60 | E29: =IF(OR(E$8="", E$11=""), "", IF(E$8="Buy Cash", 0-(E$9*E$10*BrkgCASH*(1+sTax))-($C22*E$10*BrkgCASH*(1+sTax)), 0-IF($C22>E$11,2*BrkgOPTN*1.2,BrkgOPTN*1.2))) ->  | F29: =IF(OR(F$8="", F$11=""), "", IF(F$8="Buy Cash", 0-(F$9*F$10*BrkgCASH*(1+sTax))-($C22*F$10*BrkgCASH*(1+sTax)), 0-IF($C22>F$11,2*BrkgOPTN*1.2,BrkgOPTN*1.2))) ->  | M29: =IF(M$8="", "", IF(M$8="Buy Cash", 0-(M$9*M$10*BrkgCASH*(1+sTax))-($M22*M$10*BrkgCASH*(1+sTax)), 0-IF($M22>M$11,2*BrkgOPTN*1.2,BrkgOPTN*1.2))) -> -69.84 | N29: -60 | O29: =IF(O$8="", "", IF(O$8="Buy Cash", 0-(O$9*O$10*BrkgCASH*(1+sTax))-($M22*O$10*BrkgCASH*(1+sTax)), 0-IF($M22>O$11,2*BrkgOPTN*1.2,BrkgOPTN*1.2))) -> -60 | P29: =IF(P$8="", "", IF(P$8="Buy Cash", 0-(P$9*P$10*BrkgCASH*(1+sTax))-($M22*P$10*BrkgCASH*(1+sTax)), 0-IF($M22>P$11,2*BrkgOPTN*1.2,BrkgOPTN*1.2))) ->  | Q29: =SUM(M29:P29) -> -189.84
C30: -372.06096 | D30: -60 | M30: -71.004 | N30: -60 | O30: -60 | Q30: -191.004
B31: Brokerage | C31: -379.16136 | D31: -60 | M31: -72.168 | N31: -60 | O31: -60 | Q31: -192.168
C32: -386.26176 | D32: -60 | M32: -73.332 | N32: -120 | O32: -60 | Q32: -253.332
C33: -393.36216 | D33: -60 | M33: -74.496 | N33: -120 | O33: -60 | Q33: -254.496
C34: -400.46256 | D34: -60 | M34: -75.66 | N34: -120 | O34: -120 | Q34: -315.66
C35: -407.56296 | D35: -120 | M35: -76.824 | N35: -120 | O35: -120 | Q35: -316.824
C36: =IF(OR(C$8="", C$11=""), "", IF(OR(C$8="Buy Cash", C$8="Buy FUTR", C$8="Sell FUTR"), (($C22-C$11)*C$10+$C29)*(1-STCG), (1-nTax)*(C$12+C$13+$C29+IF(C$8="Buy Call", MAX(C$10*($C22-C$11), 0), IF(C$8="Buy Put", MAX(C$10*(C$11-$C22), 0), IF(C$8="Sell Call", MIN(-C$10*($C22-C$11), 0), IF(C$8="Sell Put", MIN(-C$10*(C$11-$C22), 0)))))))) -> -14828.21648 | D36: 2035.03944 | E36: =IF(OR(E$8="", E$11=""), "", IF(OR(E$8="Buy Cash", E$8="Buy FUTR", E$8="Sell FUTR"), (($C22-E$11)*E$10+$C29)*(1-STCG), (1-nTax)*(E$12+E$13+$C29+IF(E$8="Buy Call", MAX(E$10*($C22-E$11), 0), IF(E$8="Buy Put", MAX(E$10*(E$11-$C22), 0), IF(E$8="Sell Call", MIN(-E$10*($C22-E$11), 0), IF(E$8="Sell Put", MIN(-E$10*(E$11-$C22), 0)))))))) ->  | F36: =IF(OR(F$8="", F$11=""), "", IF(OR(F$8="Buy Cash", F$8="Buy FUTR", F$8="Sell FUTR"), (($C22-F$11)*F$10+$C29)*(1-STCG), (1-nTax)*(F$12+F$13+$C29+IF(F$8="Buy Call", MAX(F$10*($C22-F$11), 0), IF(F$8="Buy Put", MAX(F$10*(F$11-$C22), 0), IF(F$8="Sell Call", MIN(-F$10*($C22-F$11), 0), IF(F$8="Sell Put", MIN(-F$10*(F$11-$C22), 0)))))))) ->  | M36: =IF(M$8="", "", IF(OR(M$8="Buy Cash", M$8="Buy FUTR", M$8="Sell FUTR"), ((M22-M$11)*M$10+M29)*(1-STCG), (1-nTax)*(M$12+M$13+M29+IF(M$8="Buy Call", MAX(M$10*(M22-M$11), 0), IF(M$8="Buy Put", MAX(M$10*(M$11-M22), 0), IF(M$8="Sell Call", MIN(-M$10*(M22-M$11), 0), IF(M$8="Sell Put", MIN(-M$10*(M$11-M22), 0)))))))) -> -1929.364 | N36: =IF(N$8="", "", IF(OR(N$8="Buy Cash", N$8="Buy FUTR", N$8="Sell FUTR"), (($M22-N$11)*N$10+N29)*(1-STCG), (1-nTax)*(N$12+N$13+N29+IF(N$8="Buy Call", MAX(N$10*($M22-N$11), 0), IF(N$8="Buy Put", MAX(N$10*(N$11-$M22), 0), IF(N$8="Sell Call", MIN(-N$10*($M22-N$11), 0), IF(N$8="Sell Put", MIN(-N$10*(N$11-$M22), 0)))))))) -> 13540 | O36: =IF(O$8="", "", IF(OR(O$8="Buy Cash", O$8="Buy FUTR", O$8="Sell FUTR"), (($M22-O$11)*O$10+O29)*(1-STCG), (1-nTax)*(O$12+O$13+O29+IF(O$8="Buy Call", MAX(O$10*($M22-O$11), 0), IF(O$8="Buy Put", MAX(O$10*(O$11-$M22), 0), IF(O$8="Sell Call", MIN(-O$10*($M22-O$11), 0), IF(O$8="Sell Put", MIN(-O$10*(O$11-$M22), 0)))))))) -> -10140 | P36: =IF(P$8="", "", IF(OR(P$8="Buy Cash", P$8="Buy FUTR", P$8="Sell FUTR"), (($M22-P$11)*P$10+P29)*(1-STCG), (1-nTax)*(P$12+P$13+P29+IF(P$8="Buy Call", MAX(P$10*($M22-P$11), 0), IF(P$8="Buy Put", MAX(P$10*(P$11-$M22), 0), IF(P$8="Sell Call", MIN(-P$10*($M22-P$11), 0), IF(P$8="Sell Put", MIN(-P$10*(P$11-$M22), 0)))))))) ->  | Q36: 1470.636
C37: -9649.251816 | D37: 2027.93904 | M37: -1080.3534 | N37: 13540 | O37: =IF(O$8="", "", IF(OR(O$8="Buy Cash", O$8="Buy FUTR", O$8="Sell FUTR"), (($M23-O$11)*O$10+O30)*(1-STCG), (1-nTax)*(O$12+O$13+O30+IF(O$8="Buy Call", MAX(O$10*($M23-O$11), 0), IF(O$8="Buy Put", MAX(O$10*(O$11-$M23), 0), IF(O$8="Sell Call", MIN(-O$10*($M23-O$11), 0), IF(O$8="Sell Put", MIN(-O$10*(O$11-$M23), 0)))))))) -> -7340 | Q37: 5119.6466
B38: Profit(+)/ Loss(-) | C38: -4470.287156 | D38: 2020.83864 | M38: -231.3428 | N38: 13540 | O38: -4540 | Q38: 8768.6572
C39: 708.677504 | D39: 2013.73824 | M39: 617.6678 | N39: 12120 | O39: -1740 | Q39: 10997.6678
C40: 5887.642164 | D40: 2006.63784 | M40: 1466.6784 | N40: 8720 | O40: 1060 | Q40: 11246.6784
C41: 11066.60682 | D41: 1999.53744 | M41: 2315.689 | N41: 5320 | O41: 1000 | Q41: 8635.689
C42: 16245.57148 | D42: -22007.56296 | M42: 3164.6996 | N42: =IF(N$8="", "", IF(OR(N$8="Buy Cash", N$8="Buy FUTR", N$8="Sell FUTR"), (($M28-N$11)*N$10+N35)*(1-STCG), (1-nTax)*(N$12+N$13+N35+IF(N$8="Buy Call", MAX(N$10*($M28-N$11), 0), IF(N$8="Buy Put", MAX(N$10*(N$11-$M28), 0), IF(N$8="Sell Call", MIN(-N$10*($M28-N$11), 0), IF(N$8="Sell Put", MIN(-N$10*(N$11-$M28), 0)))))))) -> 1920 | O42: 1000 | Q42: 6084.6996
B43: SPAN Margin@15% | C43: =IF(OR(C$8="", C$11=""), "", IF(C$8="Buy Cash", C9*$D$7, IF(OR(C$8="Sell Call", C$8="Sell Put", C$8="Sell FUTR", C$8="Buy FUTR"), C11*$D$7*0.15, ABS(C12)))) -> 633600 | D43: =IF(OR(D$8="", D$11=""), "", IF(D$8="Buy Cash", D9*$D$7, IF(OR(D$8="Sell Call", D$8="Sell Put", D$8="Sell FUTR", D$8="Buy FUTR"), D11*$D$7*0.15, ABS(D12)))) -> 108000 | E43: =IF(OR(E$8="", E$11=""), "", IF(E$8="Buy Cash", E9*$D$7, IF(OR(E$8="Sell Call", E$8="Sell Put", E$8="Sell FUTR", E$8="Buy FUTR"), E11*$D$7*0.15, ABS(E12)))) ->  | F43: =IF(OR(F$8="", F$11=""), "", IF(F$8="Buy Cash", F9*$D$7, IF(OR(F$8="Sell Call", F$8="Sell Put", F$8="Sell FUTR", F$8="Buy FUTR"), F11*$D$7*0.15, ABS(F12)))) ->  | M43: =IF(M$8="", "", IF(M$8="Buy Cash", M9*$D$7, IF(OR(M$8="Sell Call", M$8="Sell Put", M$8="Sell FUTR", M$8="Buy FUTR"), M11*$D$7*0.15, ABS(M$12)))) -> 744000 | N43: =IF(N$8="", "", IF(N$8="Buy Cash", N9*$D$7, IF(OR(N$8="Sell Call", N$8="Sell Put", N$8="Sell FUTR", N$8="Buy FUTR"), N11*$D$7*0.15, ABS(N$12)))) -> 113760 | O43: =IF(O$8="", "", IF(O$8="Buy Cash", O9*$D$7, IF(OR(O$8="Sell Call", O$8="Sell Put", O$8="Sell FUTR", O$8="Buy FUTR"), O11*$D$7*0.15, ABS(O$12)))) -> 118800 | P43: =IF(P$8="", "", IF(P$8="Buy Cash", P9*$D$7, IF(OR(P$8="Sell Call", P$8="Sell Put", P$8="Sell FUTR", P$8="Buy FUTR"), P11*$D$7*0.15,ABS(P$12)))) -> 
B44: Interest p.m. @RFR | C44: =IF(OR(C$8="", C$11=""), "", C43*RFR/12) -> 3818.496 | D44: =IF(OR(D$8="", D$11=""), "", D43*RFR/12) -> 650.88 | E44: =IF(OR(E$8="", E$11=""), "", E43*RFR/12) ->  | F44: =IF(OR(F$8="", F$11=""), "", F43*RFR/12) ->  | M44: =IF(M$8="", "", M43*RFR/12) -> 4483.84 | N44: =IF(N$8="", "", N43*RFR/12) -> 685.5936 | O44: =IF(O$8="", "", O43*RFR/12) -> 715.968 | P44: =IF(P$8="", "", P43*RFR/12) -> 
B45: =SUM(C36:F36) -> -12793.17704 | C45: =SUM(C37:F37) -> -7621.312776 | D45: =SUM(C38:F38) -> -2449.448516 | E45: =SUM(C39:F39) -> 2722.415744 | F45: =SUM(C40:F40) -> 7894.280004 | G45: =SUM(C41:F41) -> 13066.14426 | H45: =SUM(C42:F42) -> -5761.991476 | P45: 0.164 | Q45: Service Tax Rate

Sheet NIFTY
B2: Index Options | I2: Pay-off or "Profit and Loss" Table
B3: Cahs flow: | C3: NIFTY50 | D3: Lot Size | G3: Strike X | H3: 2 | O3: NIFTY50 | P3: Lot Size | Q3: Strike X | R3: 2
B4: =-75*(127+262) -> -29175 | D4: =IF(C3="BANKNIFTY", 30, 75) -> 75 | G4: Strike Interval | H4: =IF(C3="NIFTY50", 50, 100) -> 50 | P4: =IF(O3="BANKNIFTY", 30, 75) -> 75 | Q4: Strike Interval | R4: =IF(O3="BANKNIFTY", 100, 50) -> 50
B5: =SUM(C9:H9) -> 27150 | C5: Sell Call | D5: Sell Put | E5: Buy Put | O5: Sell Call | P5: Sell Call
B6: CMP | C6: 9750 | D6: =IF(D5="", "", $C$6) -> 9750 | E6: =IF(E5="", "", $C$6) -> 9750 | F6: =IF(F5="", "", $C$6) ->  | H6: =IF(H5="", "", $C$6) ->  | O6: 9750 | P6: =IF(P5="", "", $O$6) -> 9750 | Q6: =IF(Q5="", "", $O$6) -> 
B7: Trade Quantity | C7: 75 | D7: 75 | E7: 75 | O7: 75 | P7: 75
B8: Strike/ Buy Price | C8: 9600 | D8: 9900 | E8: 9600 | O8: 9600 | P8: 9900
B9: Premium of 1st Leg | C9: =225*C7 -> 16875 | D9: =219*D7 -> 16425 | E9: =-82*E7 -> -6150 | O9: =240*75 -> 18000 | P9: =75*P7 -> 5625
B10: Square-off Premium | C10: 0 | D10: 0 | E10: 0 | O10: 0 | P10: 0
B11: Implied or Hist. Vol. | C11: 0.11 | D11: =IF(D$5="", "", $C11) -> 0.11 | E11: =IF(E$5="", "", $C11) -> 0.11 | O11: =IF(O$5="", "", $C11) -> 0.11 | P11: =IF(P$5="", "", $C11) -> 0.11 | Q11: =IF(Q$5="", "", $C11) -> 
B12: Dividend Yield | C12: 0 | E12: IR on Margin: | F12: 0.18 | G12: SPAN | H12: 0.05
B13: Risk-Reward Ratio | C13: =IF(ABS(MIN(B42:H42))=0, "", MAX(B42:H42)/ABS(MIN(B42:H42))) -> 0.6592920354 | D13: @probability | F13: =ABS(SUM(C16:H16)) -> 0.071276 | J13: =36.72*5 -> 183.6 | O13: =IF(ABS(MIN(L42:R42))=0, "", MAX(L42:R42)/ABS(MIN(L42:R42))) -> 1.087439278 | P13: @probability | R13: =ABS(SUM(O16:R16)) -> 1.018582
B14: Theoretical Premium | C14: =IF(OR(C$5="", C$8=""),"", IF(OR(C$5="Buy Call", C$5="Sell Call"), premCall(C$6, C8, t, RFR, C$11, DYU), IF(OR(C$5="Buy Put", C$5="Sell Put"), premPut(C$6, C8, t, RFR, C$11, DYU), IF(OR(C$5="Buy Cash", C$5="Buy FUTR"), 0, 0)))) -> 157.8719 | D14: =IF(OR(D$5="", D$8=""),"", IF(OR(D$5="Buy Call", D$5="Sell Call"), premCall(D$6, D8, t, RFR, D$11, DYU), IF(OR(D$5="Buy Put", D$5="Sell Put"), premPut(D$6, D8, t, RFR, D$11, DYU), IF(OR(D$5="Buy Cash", D$5="Buy FUTR"), 0, 0)))) -> 147.181 | E14: =IF(OR(E$5="", E$8=""),"", IF(OR(E$5="Buy Call", E$5="Sell Call"), premCall(E$6, E8, t, RFR, E$11, DYU), IF(OR(E$5="Buy Put", E$5="Sell Put"), premPut(E$6, E8, t, RFR, E$11, DYU), IF(OR(E$5="Buy Cash", E$5="Buy FUTR"), 0, 0)))) -> 2.168 | F14: =IF(OR(F$5="", F$8=""),"", IF(OR(F$5="Buy Call", F$5="Sell Call"), premCall(F$6, F8, t, RFR, F$11, DYU), IF(OR(F$5="Buy Put", F$5="Sell Put"), premPut(F$6, F8, t, RFR, F$11, DYU), IF(OR(F$5="Buy Cash", F$5="Buy FUTR"), 0, 0)))) ->  | G14: =IF(OR(G$5="", G$8=""),"", IF(OR(G$5="Buy Call", G$5="Sell Call"), premCall(G$6, G8, t, RFR, G$11, DYU), IF(OR(G$5="Buy Put", G$5="Sell Put"), premPut(G$6, G8, t, RFR, G$11, DYU), IF(OR(G$5="Buy Cash", G$5="Buy FUTR"), 0, 0)))) ->  | H14: =IF(OR(H$5="", H$8=""),"", IF(OR(H$5="Buy Call", H$5="Sell Call"), premCall(H$6, H8, t, RFR, H$11, DYU), IF(OR(H$5="Buy Put", H$5="Sell Put"), premPut(H$6, H8, t, RFR, H$11, DYU), IF(OR(H$5="Buy Cash", H$5="Buy FUTR"), 0, 0)))) ->  | O14: =IF(OR(O$5="", O$8=""),"", IF(OR(O$5="Buy Call", O$5="Sell Call"), premCall(O$6, O8, t, RFR, O$11, DYY), IF(OR(O$5="Buy Put", O$5="Sell Put"), premPut(O$6, O8, t, RFR, O$11, DYY), IF(OR(O$5="Buy Cash", O$5="Buy FUTR"), 0, 0)))) -> 157.8719 | P14: =IF(OR(P$5="", P$8=""),"", IF(OR(P$5="Buy Call", P$5="Sell Call"), premCall(P$6, P8, t, RFR, P$11, DYY), IF(OR(P$5="Buy Put", P$5="Sell Put"), premPut(P$6, P8, t, RFR, P$11, DYY), IF(OR(P$5="Buy Cash", P$5="Buy FUTR"), 0, 0)))) -> 3.0633 | Q14: =IF(OR(Q$5="", Q$8=""),"", IF(OR(Q$5="Buy Call", Q$5="Sell Call"), premCall(Q$6, Q8, t, RFR, Q$11, DYY), IF(OR(Q$5="Buy Put", Q$5="Sell Put"), premPut(Q$6, Q8, t, RFR, Q$11, DYY), IF(OR(Q$5="Buy Cash", Q$5="Buy FUTR"), 0, 0)))) ->  | R14: =IF(OR(R$5="", R$8=""),"", IF(OR(R$5="Buy Call", R$5="Sell Call"), premCall(R$6, R8, t, RFR, R$11, DYY), IF(OR(R$5="Buy Put", R$5="Sell Put"), premPut(R$6, R8, t, RFR, R$11, DYY), IF(OR(R$5="Buy Cash", R$5="Buy FUTR"), 0, 0)))) -> 
B15: ="Theta= " & TEXT(ROUND(SUM(C15:H15), 4), "0.000") -> Theta= 2.284 | C15: =IF(OR(C$5="", C$8=""), "", IF(C$5="Buy Call", calltheta(C$6,C$8,t,RFR,C$11,DYU), IF(C$5="Sell Call",-calltheta(C$6,C$8,t, RFR,C$11,DYX), IF(C$5="Buy Put",PutTheta(C$6,C$8,t,RFR,C$11,DYU), IF(C$5="Sell Put", -PutTheta(C$6,C$8,t,RFR,C$11,DYU), 0))))) -> 3.54136 | D15: =IF(OR(D$5="", D$8=""), "", IF(D$5="Buy Call", calltheta(D$6,D$8,t,RFR,D$11,DYU), IF(D$5="Sell Call",-calltheta(D$6,D$8,t, RFR,D$11,DYX), IF(D$5="Buy Put",PutTheta(D$6,D$8,t,RFR,D$11,DYU), IF(D$5="Sell Put", -PutTheta(D$6,D$8,t,RFR,D$11,DYU), 0))))) -> 0.382982 | E15: =IF(OR(E$5="", E$8=""), "", IF(E$5="Buy Call", calltheta(E$6,E$8,t,RFR,E$11,DYU), IF(E$5="Sell Call",-calltheta(E$6,E$8,t, RFR,E$11,DYX), IF(E$5="Buy Put",PutTheta(E$6,E$8,t,RFR,E$11,DYU), IF(E$5="Sell Put", -PutTheta(E$6,E$8,t,RFR,E$11,DYU), 0))))) -> -1.640376 | F15: =IF(OR(F$5="", F$8=""), "", IF(F$5="Buy Call", calltheta(F$6,F$8,t,RFR,F$11,DYU), IF(F$5="Sell Call",-calltheta(F$6,F$8,t, RFR,F$11,DYX), IF(F$5="Buy Put",PutTheta(F$6,F$8,t,RFR,F$11,DYU), IF(F$5="Sell Put", -PutTheta(F$6,F$8,t,RFR,F$11,DYU), 0))))) ->  | G15: =IF(OR(G$5="", G$8=""), "", IF(G$5="Buy Call", calltheta(G$6,G$8,t,RFR,G$11,DYU), IF(G$5="Sell Call",-calltheta(G$6,G$8,t, RFR,G$11,DYX), IF(G$5="Buy Put",PutTheta(G$6,G$8,t,RFR,G$11,DYU), IF(G$5="Sell Put", -PutTheta(G$6,G$8,t,RFR,G$11,DYU), 0))))) ->  | H15: =IF(OR(H$5="", H$8=""), "", IF(H$5="Buy Call", calltheta(H$6,H$8,t,RFR,H$11,DYU), IF(H$5="Sell Call",-calltheta(H$6,H$8,t, RFR,H$11,DYX), IF(H$5="Buy Put",PutTheta(H$6,H$8,t,RFR,H$11,DYU), IF(H$5="Sell Put", -PutTheta(H$6,H$8,t,RFR,H$11,DYU), 0))))) ->  | O15: =IF(OR(O$5="", O$8=""), "", IF(O$5="Buy Call", calltheta(O$6,O$8,t,RFR,O$11,DYV), IF(O$5="Sell Call",-calltheta(O$6,O$8,t, RFR,O$11,DYV), IF(O$5="Buy Put",PutTheta(O$6,O$8,t,RFR,O$11,DYV), IF(O$5="Sell Put", -PutTheta(O$6,O$8,t,RFR,O$11,DYV), 0))))) -> 3.54136 | P15: =IF(OR(P$5="", P$8=""), "", IF(P$5="Buy Call", calltheta(P$6,P$8,t,RFR,P$11,DYV), IF(P$5="Sell Call",-calltheta(P$6,P$8,t, RFR,P$11,DYV), IF(P$5="Buy Put",PutTheta(P$6,P$8,t,RFR,P$11,DYV), IF(P$5="Sell Put", -PutTheta(P$6,P$8,t,RFR,P$11,DYV), 0))))) -> 2.343373 | Q15: =IF(OR(Q$5="", Q$8=""), "", IF(Q$5="Buy Call", calltheta(Q$6,Q$8,t,RFR,Q$11,DYV), IF(Q$5="Sell Call",-calltheta(Q$6,Q$8,t, RFR,Q$11,DYV), IF(Q$5="Buy Put",PutTheta(Q$6,Q$8,t,RFR,Q$11,DYV), IF(Q$5="Sell Put", -PutTheta(Q$6,Q$8,t,RFR,Q$11,DYV), 0))))) ->  | R15: =IF(OR(R$5="", R$8=""), "", IF(R$5="Buy Call", calltheta(R$6,R$8,t,RFR,R$11,DYV), IF(R$5="Sell Call",-calltheta(R$6,R$8,t, RFR,R$11,DYV), IF(R$5="Buy Put",PutTheta(R$6,R$8,t,RFR,R$11,DYV), IF(R$5="Sell Put", -PutTheta(R$6,R$8,t,RFR,R$11,DYV), 0))))) -> 
B16: ="Delta = " & TEXT(ROUND(SUM(C16:H16), 4), "0.000") -> Delta = -0.071 | C16: =IF(OR(C$5="", C$8=""), "", IF(C$5="Buy Call", CallDelta(C$6, C$8, t, RFR, C$11, DYU), IF(C$5="Sell Call", -CallDelta(C$6, C$8,t,RFR, C$11, DYU), IF(C$5="Buy Put", Putdelta(C$6, C$8, t, RFR, C$11, DYU), IF(C$5="Sell Put", -Putdelta(C$6, C$8, t, RFR, C$11, DYU), IF(OR(C$5="Buy Cash", C$5="Buy FUTR"), 1*C7/$D$4, -1*C7/$D$4)))))) -> -0.947306 | D16: =IF(OR(D$5="", D$8=""), "", IF(D$5="Buy Call", CallDelta(D$6, D$8, t, RFR, D$11, DYU), IF(D$5="Sell Call", -CallDelta(D$6, D$8,t,RFR, D$11, DYU), IF(D$5="Buy Put", Putdelta(D$6, D$8, t, RFR, D$11, DYU), IF(D$5="Sell Put", -Putdelta(D$6, D$8, t, RFR, D$11, DYU), IF(OR(D$5="Buy Cash", D$5="Buy FUTR"), 1*D7/$D$4, -1*D7/$D$4)))))) -> 0.928724 | E16: =IF(OR(E$5="", E$8=""), "", IF(E$5="Buy Call", CallDelta(E$6, E$8, t, RFR, E$11, DYU), IF(E$5="Sell Call", -CallDelta(E$6, E$8,t,RFR, E$11, DYU), IF(E$5="Buy Put", Putdelta(E$6, E$8, t, RFR, E$11, DYU), IF(E$5="Sell Put", -Putdelta(E$6, E$8, t, RFR, E$11, DYU), IF(OR(E$5="Buy Cash", E$5="Buy FUTR"), 1*E7/$D$4, -1*E7/$D$4)))))) -> -0.052694 | F16: =IF(OR(F$5="", F$8=""), "", IF(F$5="Buy Call", CallDelta(F$6, F$8, t, RFR, F$11, DYU), IF(F$5="Sell Call", -CallDelta(F$6, F$8,t,RFR, F$11, DYU), IF(F$5="Buy Put", Putdelta(F$6, F$8, t, RFR, F$11, DYU), IF(F$5="Sell Put", -Putdelta(F$6, F$8, t, RFR, F$11, DYU), IF(OR(F$5="Buy Cash", F$5="Buy FUTR"), 1*F7/$D$4, -1*F7/$D$4)))))) ->  | G16: =IF(OR(G$5="", G$8=""), "", IF(G$5="Buy Call", CallDelta(G$6, G$8, t, RFR, G$11, DYU), IF(G$5="Sell Call", -CallDelta(G$6, G$8,t,RFR, G$11, DYU), IF(G$5="Buy Put", Putdelta(G$6, G$8, t, RFR, G$11, DYU), IF(G$5="Sell Put", -Putdelta(G$6, G$8, t, RFR, G$11, DYU), IF(OR(G$5="Buy Cash", G$5="Buy FUTR"), 1*G7/$D$4, -1*G7/$D$4)))))) ->  | H16: =IF(OR(H$5="", H$8=""), "", IF(H$5="Buy Call", CallDelta(H$6, H$8, t, RFR, H$11, DYU), IF(H$5="Sell Call", -CallDelta(H$6, H$8,t,RFR, H$11, DYU), IF(H$5="Buy Put", Putdelta(H$6, H$8, t, RFR, H$11, DYU), IF(H$5="Sell Put", -Putdelta(H$6, H$8, t, RFR, H$11, DYU), IF(OR(H$5="Buy Cash", H$5="Buy FUTR"), 1*H7/$D$4, -1*H7/$D$4)))))) ->  | O16: =IF(OR(O$5="", O$8=""), "", IF(O$5="Buy Call", CallDelta(O$6, O$8, t, RFR, O$11, DYV), IF(O$5="Sell Call", -CallDelta(O$6, O$8,t,RFR, O$11, DYV), IF(O$5="Buy Put", Putdelta(O$6, O$8, t, RFR, O$11, DYV), IF(O$5="Sell Put", -Putdelta(O$6, O$8, t, RFR, O$11, DYV), IF(OR(O$5="Buy Cash", O$5="Buy FUTR"), 1*O7/P$4, -1*O7/P$4)))))) -> -0.947306 | P16: =IF(OR(P$5="", P$8=""), "", IF(P$5="Buy Call", CallDelta(P$6, P$8, t, RFR, P$11, DYV), IF(P$5="Sell Call", -CallDelta(P$6, P$8,t,RFR, P$11, DYV), IF(P$5="Buy Put", Putdelta(P$6, P$8, t, RFR, P$11, DYV), IF(P$5="Sell Put", -Putdelta(P$6, P$8, t, RFR, P$11, DYV), IF(OR(P$5="Buy Cash", P$5="Buy FUTR"), 1*P7/Q$4, -1*P7/Q$4)))))) -> -0.071276 | Q16: =IF(OR(Q$5="", Q$8=""), "", IF(Q$5="Buy Call", CallDelta(Q$6, Q$8, t, RFR, Q$11, DYV), IF(Q$5="Sell Call", -CallDelta(Q$6, Q$8,t,RFR, Q$11, DYV), IF(Q$5="Buy Put", Putdelta(Q$6, Q$8, t, RFR, Q$11, DYV), IF(Q$5="Sell Put", -Putdelta(Q$6, Q$8, t, RFR, Q$11, DYV), IF(OR(Q$5="Buy Cash", Q$5="Buy FUTR"), 1*Q7/R$4, -1*Q7/R$4)))))) ->  | R16: =IF(OR(R$5="", R$8=""), "", IF(R$5="Buy Call", CallDelta(R$6, R$8, t, RFR, R$11, DYV), IF(R$5="Sell Call", -CallDelta(R$6, R$8,t,RFR, R$11, DYV), IF(R$5="Buy Put", Putdelta(R$6, R$8, t, RFR, R$11, DYV), IF(R$5="Sell Put", -Putdelta(R$6, R$8, t, RFR, R$11, DYV), IF(OR(R$5="Buy Cash", R$5="Buy FUTR"), 1*R7/S$4, -1*R7/S$4)))))) -> 
B17: ="Vega = " & TEXT(ROUND(SUM(C17:H17),4), "0.000") -> Vega = 3.104 | C17: =IF(OR(C$5="", C$8=""), "", IF(OR(C$5="Buy Call",C$5="Sell Call",C$5="Buy Put",C$5="Sell Put"),Vega(C$6,C8,t,RFR,C$11,DYU),IF(OR(C$5="Buy Cash",C$5="Buy FUTR"),0))) -> 0.95051 | D17: =IF(OR(D$5="", D$8=""), "", IF(OR(D$5="Buy Call",D$5="Sell Call",D$5="Buy Put",D$5="Sell Put"),Vega(D$6,D8,t,RFR,D$11,DYU),IF(OR(D$5="Buy Cash",D$5="Buy FUTR"),0))) -> 1.203429 | E17: =IF(OR(E$5="", E$8=""), "", IF(OR(E$5="Buy Call",E$5="Sell Call",E$5="Buy Put",E$5="Sell Put"),Vega(E$6,E8,t,RFR,E$11,DYU),IF(OR(E$5="Buy Cash",E$5="Buy FUTR"),0))) -> 0.95051 | F17: =IF(OR(F$5="", F$8=""), "", IF(OR(F$5="Buy Call",F$5="Sell Call",F$5="Buy Put",F$5="Sell Put"),Vega(F$6,F8,t,RFR,F$11,DYU),IF(OR(F$5="Buy Cash",F$5="Buy FUTR"),0))) ->  | G17: =IF(OR(G$5="", G$8=""), "", IF(OR(G$5="Buy Call",G$5="Sell Call",G$5="Buy Put",G$5="Sell Put"),Vega(G$6,G8,t,RFR,G$11,DYU),IF(OR(G$5="Buy Cash",G$5="Buy FUTR"),0))) ->  | H17: =IF(OR(H$5="", H$8=""), "", IF(OR(H$5="Buy Call",H$5="Sell Call",H$5="Buy Put",H$5="Sell Put"),Vega(H$6,H8,t,RFR,H$11,DYU),IF(OR(H$5="Buy Cash",H$5="Buy FUTR"),0))) ->  | O17: =IF(OR(O$5="", O$8=""), "", IF(OR(O$5="Buy Call",O$5="Sell Call",O$5="Buy Put",O$5="Sell Put"),Vega(O$6,O8,t,RFR,O$11,DYV),IF(OR(O$5="Buy Cash",O$5="Buy FUTR"),0))) -> 0.95051 | P17: =IF(OR(P$5="", P$8=""), "", IF(OR(P$5="Buy Call",P$5="Sell Call",P$5="Buy Put",P$5="Sell Put"),Vega(P$6,P8,t,RFR,P$11,DYV),IF(OR(P$5="Buy Cash",P$5="Buy FUTR"),0))) -> 1.203429 | Q17: =IF(OR(Q$5="", Q$8=""), "", IF(OR(Q$5="Buy Call",Q$5="Sell Call",Q$5="Buy Put",Q$5="Sell Put"),Vega(Q$6,Q8,t,RFR,Q$11,DYV),IF(OR(Q$5="Buy Cash",Q$5="Buy FUTR"),0))) ->  | R17: =IF(OR(R$5="", R$8=""), "", IF(OR(R$5="Buy Call",R$5="Sell Call",R$5="Buy Put",R$5="Sell Put"),Vega(R$6,R8,t,RFR,R$11,DYV),IF(OR(R$5="Buy Cash",R$5="Buy FUTR"),0))) -> 
B18: ="Gamma = " & TEXT(ROUND(SUM(C18:H18),4), "0.000") -> Gamma = 0.004 | C18: =IF(OR(C$5="", C$8=""), "", IF(C5="Buy Cash", 0, Gamma(C$6, C8, t, RFR, C$11, DYU))) -> 0.001106 | D18: =IF(OR(D$5="", D$8=""), "", IF(D5="Buy Cash", 0, Gamma(D$6, D8, t, RFR, D$11, DYU))) -> 0.0014 | E18: =IF(OR(E$5="", E$8=""), "", IF(E5="Buy Cash", 0, Gamma(E$6, E8, t, RFR, E$11, DYU))) -> 0.001106 | F18: =IF(OR(F$5="", F$8=""), "", IF(F5="Buy Cash", 0, Gamma(F$6, F8, t, RFR, F$11, DYU))) ->  | G18: =IF(OR(G$5="", G$8=""), "", IF(G5="Buy Cash", 0, Gamma(G$6, G8, t, RFR, G$11, DYU))) ->  | H18: =IF(OR(H$5="", H$8=""), "", IF(H5="Buy Cash", 0, Gamma(H$6, H8, t, RFR, H$11, DYU))) ->  | O18: =IF(OR(O$5="", O$8=""), "", IF(O5="Buy Cash", 0, Gamma(O$6, O8, t, RFR, O$11, DYV))) -> 0.001106 | P18: =IF(OR(P$5="", P$8=""), "", IF(P5="Buy Cash", 0, Gamma(P$6, P8, t, RFR, P$11, DYV))) -> 0.0014 | Q18: =IF(OR(Q$5="", Q$8=""), "", IF(Q5="Buy Cash", 0, Gamma(Q$6, Q8, t, RFR, Q$11, DYV))) ->  | R18: =IF(OR(R$5="", R$8=""), "", IF(R5="Buy Cash", 0, Gamma(R$6, R8, t, RFR, R$11, DYV))) -> 
B19: Spot Price at Sqr-Off | C19: =IF(C$5="", "", C20-H4*H3) -> 9450 | L19: =SUM(O26:R26) -> -120 | O19: =IF(O$5="", "", O20-R4*R3) -> 9450
C20: =IF(C$5="", "", C21-H$4*H3) -> 9550 | L20: -120 | O20: =IF(O$5="", "", O21-R$4*R3) -> 9550
C21: =IF(C$5="", "", C22-H$4*H3) -> 9650 | L21: -180 | O21: =IF(O$5="", "", O22-R$4*R3) -> 9650
C22: =IF(C$5="", "", ROUND(C6/H4,0)*H4) -> 9750 | L22: -180 | O22: =IF(O$5="", "", ROUND(O6/R4,0)*R4) -> 9750
C23: =IF(C$5="", "", C22+H$4*H3) -> 9850 | L23: -180 | O23: =IF(O$5="", "", O22+R$4*R3) -> 9850
C24: =IF(C$5="", "", C23+H$4*H3) -> 9950 | L24: -240 | O24: =IF(O$5="", "", O23+R$4*R3) -> 9950
C25: =IF(C$5="", "", C24+H$4*H3) -> 10050 | L25: =SUM(O32:R32) -> -240 | O25: =IF(O$5="", "", O24+R$4*R3) -> 10050
C26: =IF(OR(C$5="",C$8=""),"",IF(C$5="Buy Cash",-(C$6*C$7*BrkgCASH*(1+sTax))-($C19*C$7*BrkgCASH*(1+sTax)),IF(C10=0,-BrkgOPTN*1.2,-2*BrkgOPTN*1.2))) -> -60 | D26: =IF(OR(D$5="", D$8=""), "", IF(D$5="Buy Cash", 0-(D$6*D$7*BrkgCASH*(1+sTax))-($C19*D$7*BrkgCASH*(1+sTax)), 0-IF($C19>D$8,2*BrkgOPTN*1.2,BrkgOPTN*1.2))) -> -60 | E26: =IF(OR(E$5="", E$8=""), "", IF(E$5="Buy Cash", 0-(E$6*E$7*BrkgCASH*(1+sTax))-($C19*E$7*BrkgCASH*(1+sTax)), 0-IF($C19>E$8,2*BrkgOPTN*1.2,BrkgOPTN*1.2))) -> -60 | O26: =IF(OR(O$5="", O$8=""), "", IF(O$5="Buy Cash", 0-(O$6*O$7*BrkgCASH*(1+sTax))-($O19*O$7*BrkgCASH*(1+sTax)), 0-IF($O19>O$8,2*BrkgOPTN*1.2,BrkgOPTN*1.2))) -> -60 | P26: =IF(OR(P$5="", P$8=""), "", IF(P$5="Buy Cash", 0-(P$6*P$7*BrkgCASH*(1+sTax))-($C19*P$7*BrkgCASH*(1+sTax)), 0-IF($C19>P$8,2*BrkgOPTN*1.2,BrkgOPTN*1.2))) -> -60
C27: =IF(OR(C$5="", C$8=""), "", IF(C$5="Buy Cash", 0-(C$6*C$7*BrkgCASH*(1+sTax))-($C20*C$7*BrkgCASH*(1+sTax)), IF(C10=0, -BrkgOPTN*1.2, -2*BrkgOPTN*1.2))) -> -60 | D27: -60 | E27: =IF(OR(E$5="", E$8=""), "", IF(E$5="Buy Cash", 0-(E$6*E$7*BrkgCASH*(1+sTax))-($C20*E$7*BrkgCASH*(1+sTax)), 0-IF($C20>E$8,2*BrkgOPTN*1.2,BrkgOPTN*1.2))) -> -60 | O27: -60 | P27: -60
B28: Brokerage | C28: =IF(OR(C$5="", C$8=""), "", IF(C$5="Buy Cash", 0-(C$6*C$7*BrkgCASH*(1+sTax))-($C21*C$7*BrkgCASH*(1+sTax)), IF(C10=0, -BrkgOPTN*1.2, 2*BrkgOPTN*1.2))) -> -60 | D28: -60 | E28: =IF(OR(E$5="", E$8=""), "", IF(E$5="Buy Cash", 0-(E$6*E$7*BrkgCASH*(1+sTax))-($C21*E$7*BrkgCASH*(1+sTax)), 0-IF($C21>E$8,2*BrkgOPTN*1.2,BrkgOPTN*1.2))) -> -120 | O28: -120 | P28: -60
C29: =IF(OR(C$5="", C$8=""), "", IF(C$5="Buy Cash", -(C$6*C$7*BrkgCASH*(1+sTax))-($C22*C$7*BrkgCASH*(1+sTax)), IF(C10=0, -BrkgOPTN*1.2, -2*BrkgOPTN*1.2))) -> -60 | D29: -60 | E29: =IF(OR(E$5="", E$8=""), "", IF(E$5="Buy Cash", 0-(E$6*E$7*BrkgCASH*(1+sTax))-($C22*E$7*BrkgCASH*(1+sTax)), 0-IF($C22>E$8,2*BrkgOPTN*1.2,BrkgOPTN*1.2))) -> -120 | O29: -120 | P29: -60
C30: =IF(OR(C$5="", C$8=""), "", IF(C$5="Buy Cash", 0-(C$6*C$7*BrkgCASH*(1+sTax))-($C23*C$7*BrkgCASH*(1+sTax)), IF(C10=0, -BrkgOPTN*1.2, -2*BrkgOPTN*1.2))) -> -60 | D30: -60 | E30: =IF(OR(E$5="", E$8=""), "", IF(E$5="Buy Cash", 0-(E$6*E$7*BrkgCASH*(1+sTax))-($C23*E$7*BrkgCASH*(1+sTax)), 0-IF($C23>E$8,2*BrkgOPTN*1.2,BrkgOPTN*1.2))) -> -120 | J30: SYMBOL | K30: % | L30: QTY | M30: Hold Price | O30: -120 | P30: -60
C31: =IF(OR(C$5="", C$8=""), "", IF(C$5="Buy Cash", 0-(C$6*C$7*BrkgCASH*(1+sTax))-($C24*C$7*BrkgCASH*(1+sTax)), IF(C10=0, -BrkgOPTN*1.2, -2*BrkgOPTN*1.2))) -> -60 | D31: -120 | E31: =IF(OR(E$5="", E$8=""), "", IF(E$5="Buy Cash", 0-(E$6*E$7*BrkgCASH*(1+sTax))-($C24*E$7*BrkgCASH*(1+sTax)), 0-IF($C24>E$8,2*BrkgOPTN*1.2,BrkgOPTN*1.2))) -> -120 | J31: HDFCBANK | K31: 9.64 | L31: 10 | O31: -120 | P31: -120 | R31: =IF(OR(R$5="", R$8=""), "", IF(R$5="Buy Cash", 0-(R$6*R$7*BrkgCASH*(1+sTax))-($C24*R$7*BrkgCASH*(1+sTax)), 0-IF($C24>R$8,2*BrkgOPTN*1.2,BrkgOPTN*1.2))) -> 
C32: =IF(OR(C$5="", C$8=""), "", IF(C$5="Buy Cash", 0-(C$6*C$7*BrkgCASH*(1+sTax))-($C25*C$7*BrkgCASH*(1+sTax)), IF(C10=0, -BrkgOPTN*1.2, -2*BrkgOPTN*1.2))) -> -60 | D32: -120 | E32: =IF(OR(E$5="", E$8=""), "", IF(E$5="Buy Cash", 0-(E$6*E$7*BrkgCASH*(1+sTax))-($C25*E$7*BrkgCASH*(1+sTax)), 0-IF($C25>E$8,2*BrkgOPTN*1.2,BrkgOPTN*1.2))) -> -120 | J32: HDFC | K32: 7.53 | L32: 0 | O32: -120 | P32: -120
C33: =IF(OR(C$5="", C$8=""), "", IF(OR(C$5="Buy Cash", C$5="Buy FUTR", C$5="Sell FUTR"), (($C19-C$8)*C$7+$C26)*(1-STCG), (1-nTax)*(C$9+C$10+$C26+IF(C$5="Buy Call", MAX(C$7*($C19-C$8), 0), IF(C$5="Buy Put", MAX(C$7*(C$8-$C19), 0), IF(C$5="Sell Call", MIN(-C$7*($C19-C$8), 0), IF(C$5="Sell Put", MIN(-C$7*(C$8-$C19), 0)))))))) -> 16815 | D33: -17385 | E33: =IF(OR(E$5="", E$8=""), "", IF(OR(E$5="Buy Cash", E$5="Buy FUTR", E$5="Sell FUTR"), (($C19-E$8)*E$7+$C26)*(1-STCG), (1-nTax)*(E$9+E$10+$C26+IF(E$5="Buy Call", MAX(E$7*($C19-E$8), 0), IF(E$5="Buy Put", MAX(E$7*(E$8-$C19), 0), IF(E$5="Sell Call", MIN(-E$7*($C19-E$8), 0), IF(E$5="Sell Put", MIN(-E$7*(E$8-$C19), 0)))))))) -> 5040 | J33: RELIANCE | K33: 7.21 | L33: 70 | O33: =IF(OR(O$5="", O$8=""), "", IF(OR(O$5="Buy Cash", O$5="Buy FUTR", O$5="Sell FUTR"), (($C19-O$8)*O$7+$O26)*(1-STCG), (1-nTax)*(O$9+O$10+$O26+IF(O$5="Buy Call", MAX(O$7*($C19-O$8), 0), IF(O$5="Buy Put", MAX(O$7*(O$8-$O19), 0), IF(O$5="Sell Call", MIN(-O$7*($O19-O$8), 0), IF(O$5="Sell Put", MIN(-O$7*(O$8-$O19), 0)))))))) -> 17940 | P33: =IF(OR(P$5="", P$8=""), "", IF(OR(P$5="Buy Cash", P$5="Buy FUTR", P$5="Sell FUTR"), (($C19-P$8)*P$7+$O26)*(1-STCG), (1-nTax)*(P$9+P$10+$O26+IF(P$5="Buy Call", MAX(P$7*($C19-P$8), 0), IF(P$5="Buy Put", MAX(P$7*(P$8-$O19), 0), IF(P$5="Sell Call", MIN(-P$7*($O19-P$8), 0), IF(P$5="Sell Put", MIN(-P$7*(P$8-$O19), 0)))))))) -> 5565 | Q33: =IF(OR(Q$5="", Q$8=""), "", IF(OR(Q$5="Buy Cash", Q$5="Buy FUTR", Q$5="Sell FUTR"), (($C19-Q$8)*Q$7+$O26)*(1-STCG), (1-nTax)*(Q$9+Q$10+$O26+IF(Q$5="Buy Call", MAX(Q$7*($C19-Q$8), 0), IF(Q$5="Buy Put", MAX(Q$7*(Q$8-$O19), 0), IF(Q$5="Sell Call", MIN(-Q$7*($O19-Q$8), 0), IF(Q$5="Sell Put", MIN(-Q$7*(Q$8-$O19), 0)))))))) ->  | R33: =IF(OR(R$5="", R$8=""), "", IF(OR(R$5="Buy Cash", R$5="Buy FUTR", R$5="Sell FUTR"), (($C19-R$8)*R$7+$O26)*(1-STCG), (1-nTax)*(R$9+R$10+$O26+IF(R$5="Buy Call", MAX(R$7*($C19-R$8), 0), IF(R$5="Buy Put", MAX(R$7*(R$8-$O19), 0), IF(R$5="Sell Call", MIN(-R$7*($O19-R$8), 0), IF(R$5="Sell Put", MIN(-R$7*(R$8-$O19), 0)))))))) -> 
C34: 16815 | D34: -9885 | E34: =IF(OR(E$5="", E$8=""), "", IF(OR(E$5="Buy Cash", E$5="Buy FUTR", E$5="Sell FUTR"), (($C20-E$8)*E$7+$C27)*(1-STCG), (1-nTax)*(E$9+E$10+$C27+IF(E$5="Buy Call", MAX(E$7*($C20-E$8), 0), IF(E$5="Buy Put", MAX(E$7*(E$8-$C20), 0), IF(E$5="Sell Call", MIN(-E$7*($C20-E$8), 0), IF(E$5="Sell Put", MIN(-E$7*(E$8-$C20), 0)))))))) -> -2460 | J34: ITC | K34: 6.17 | O34: =IF(OR(O$5="", O$8=""), "", IF(OR(O$5="Buy Cash", O$5="Buy FUTR", O$5="Sell FUTR"), (($O20-O$8)*O$7+$O27)*(1-STCG), (1-nTax)*(O$9+O$10+$O27+IF(O$5="Buy Call", MAX(O$7*($C20-O$8), 0), IF(O$5="Buy Put", MAX(O$7*(O$8-$O20), 0), IF(O$5="Sell Call", MIN(-O$7*($O20-O$8), 0), IF(O$5="Sell Put", MIN(-O$7*(O$8-$O20), 0)))))))) -> 17940 | P34: =IF(OR(P$5="", P$8=""), "", IF(OR(P$5="Buy Cash", P$5="Buy FUTR", P$5="Sell FUTR"), (($O20-P$8)*P$7+$O27)*(1-STCG), (1-nTax)*(P$9+P$10+$O27+IF(P$5="Buy Call", MAX(P$7*($C20-P$8), 0), IF(P$5="Buy Put", MAX(P$7*(P$8-$O20), 0), IF(P$5="Sell Call", MIN(-P$7*($O20-P$8), 0), IF(P$5="Sell Put", MIN(-P$7*(P$8-$O20), 0)))))))) -> 5565 | Q34: =IF(OR(Q$5="", Q$8=""), "", IF(OR(Q$5="Buy Cash", Q$5="Buy FUTR", Q$5="Sell FUTR"), (($O20-Q$8)*Q$7+$O27)*(1-STCG), (1-nTax)*(Q$9+Q$10+$O27+IF(Q$5="Buy Call", MAX(Q$7*($C20-Q$8), 0), IF(Q$5="Buy Put", MAX(Q$7*(Q$8-$O20), 0), IF(Q$5="Sell Call", MIN(-Q$7*($O20-Q$8), 0), IF(Q$5="Sell Put", MIN(-Q$7*(Q$8-$O20), 0)))))))) ->  | R34: =IF(OR(R$5="", R$8=""), "", IF(OR(R$5="Buy Cash", R$5="Buy FUTR", R$5="Sell FUTR"), (($O20-R$8)*R$7+$O27)*(1-STCG), (1-nTax)*(R$9+R$10+$O27+IF(R$5="Buy Call", MAX(R$7*($C20-R$8), 0), IF(R$5="Buy Put", MAX(R$7*(R$8-$O20), 0), IF(R$5="Sell Call", MIN(-R$7*($O20-R$8), 0), IF(R$5="Sell Put", MIN(-R$7*(R$8-$O20), 0)))))))) -> 
B35: Profit(+)/ Loss(-) | C35: 13065 | D35: -2385 | E35: =IF(OR(E$5="", E$8=""), "", IF(OR(E$5="Buy Cash", E$5="Buy FUTR", E$5="Sell FUTR"), (($C21-E$8)*E$7+$C28)*(1-STCG), (1-nTax)*(E$9+E$10+$C28+IF(E$5="Buy Call", MAX(E$7*($C21-E$8), 0), IF(E$5="Buy Put", MAX(E$7*(E$8-$C21), 0), IF(E$5="Sell Call", MIN(-E$7*($C21-E$8), 0), IF(E$5="Sell Put", MIN(-E$7*(E$8-$C21), 0)))))))) -> -6210 | J35: ICICIBANK | K35: 4.98 | O35: =IF(OR(O$5="", O$8=""), "", IF(OR(O$5="Buy Cash", O$5="Buy FUTR", O$5="Sell FUTR"), (($O21-O$8)*O$7+$O28)*(1-STCG), (1-nTax)*(O$9+O$10+$O28+IF(O$5="Buy Call", MAX(O$7*($O21-O$8), 0), IF(O$5="Buy Put", MAX(O$7*(O$8-$O21), 0), IF(O$5="Sell Call", MIN(-O$7*($O21-O$8), 0), IF(O$5="Sell Put", MIN(-O$7*(O$8-$O21), 0)))))))) -> 14130 | P35: 5505
C36: 5565 | D36: 5115 | E36: =IF(OR(E$5="", E$8=""), "", IF(OR(E$5="Buy Cash", E$5="Buy FUTR", E$5="Sell FUTR"), (($C22-E$8)*E$7+$C29)*(1-STCG), (1-nTax)*(E$9+E$10+$C29+IF(E$5="Buy Call", MAX(E$7*($C22-E$8), 0), IF(E$5="Buy Put", MAX(E$7*(E$8-$C22), 0), IF(E$5="Sell Call", MIN(-E$7*($C22-E$8), 0), IF(E$5="Sell Put", MIN(-E$7*(E$8-$C22), 0)))))))) -> -6210 | J36: INFY | K36: 4.7 | O36: 6630 | P36: 5505
C37: -1935 | D37: 12615 | E37: =IF(OR(E$5="", E$8=""), "", IF(OR(E$5="Buy Cash", E$5="Buy FUTR", E$5="Sell FUTR"), (($C23-E$8)*E$7+$C30)*(1-STCG), (1-nTax)*(E$9+E$10+$C30+IF(E$5="Buy Call", MAX(E$7*($C23-E$8), 0), IF(E$5="Buy Put", MAX(E$7*(E$8-$C23), 0), IF(E$5="Sell Call", MIN(-E$7*($C23-E$8), 0), IF(E$5="Sell Put", MIN(-E$7*(E$8-$C23), 0)))))))) -> -6210 | J37: LT | K37: 3.84 | O37: -870 | P37: 5505
C38: -9435 | D38: 16365 | E38: =IF(OR(E$5="", E$8=""), "", IF(OR(E$5="Buy Cash", E$5="Buy FUTR", E$5="Sell FUTR"), (($C24-E$8)*E$7+$C31)*(1-STCG), (1-nTax)*(E$9+E$10+$C31+IF(E$5="Buy Call", MAX(E$7*($C24-E$8), 0), IF(E$5="Buy Put", MAX(E$7*(E$8-$C24), 0), IF(E$5="Sell Call", MIN(-E$7*($C24-E$8), 0), IF(E$5="Sell Put", MIN(-E$7*(E$8-$C24), 0)))))))) -> -6210 | J38: TCS | K38: 3.5 | O38: -8370 | P38: 1755
C39: =IF(OR(C$5="", C$8=""), "", IF(OR(C$5="Buy Cash", C$5="Buy FUTR", C$5="Sell FUTR"), (($C25-C$8)*C$7+$C32)*(1-STCG), (1-nTax)*(C$9+C$10+$C32+IF(C$5="Buy Call", MAX(C$7*($C25-C$8), 0), IF(C$5="Buy Put", MAX(C$7*(C$8-$C25), 0), IF(C$5="Sell Call", MIN(-C$7*($C25-C$8), 0), IF(C$5="Sell Put", MIN(-C$7*(C$8-$C25), 0)))))))) -> -16935 | D39: 16365 | E39: =IF(OR(E$5="", E$8=""), "", IF(OR(E$5="Buy Cash", E$5="Buy FUTR", E$5="Sell FUTR"), (($C25-E$8)*E$7+$C32)*(1-STCG), (1-nTax)*(E$9+E$10+$C32+IF(E$5="Buy Call", MAX(E$7*($C25-E$8), 0), IF(E$5="Buy Put", MAX(E$7*(E$8-$C25), 0), IF(E$5="Sell Call", MIN(-E$7*($C25-E$8), 0), IF(E$5="Sell Put", MIN(-E$7*(E$8-$C25), 0)))))))) -> -6210 | J39: KOTAKBANK | K39: 3.26 | O39: -15870 | P39: -5745
B40: SPAN Margin@5% | C40: =IF(OR(C$5="", C$8=""), "", IF(C$5="Buy Cash", C6*$D$4, IF(OR(C$5="Sell Call", C$5="Sell Put", C$5="Sell FUTR", C$5="Buy FUTR"), C8*$D$4*SPANidx, C9))) -> 36000 | D40: 37125 | E40: -6150 | J40: MARUTI | K40: 2.82 | O40: =IF(OR(O$5="", O$8=""), "", IF(O$5="Buy Cash", O6*$D$4, IF(OR(O$5="Sell Call", O$5="Sell Put", O$5="Sell FUTR", O$5="Buy FUTR"), O8*$D$4*SPANidx, O9))) -> 36000 | P40: =IF(OR(P$5="", P$8=""), "", IF(P$5="Buy Cash", P6*$D$4, IF(OR(P$5="Sell Call", P$5="Sell Put", P$5="Sell FUTR", P$5="Buy FUTR"), P8*$D$4*SPANidx, P9))) -> 37125 | Q40: =IF(OR(Q$5="", Q$8=""), "", IF(Q$5="Buy Cash", Q6*$D$4, IF(OR(Q$5="Sell Call", Q$5="Sell Put", Q$5="Sell FUTR", Q$5="Buy FUTR"), Q8*$D$4*SPANidx, Q9))) ->  | R40: =IF(OR(R$5="", R$8=""), "", IF(R$5="Buy Cash", R6*$D$4, IF(OR(R$5="Sell Call", R$5="Sell Put", R$5="Sell FUTR", R$5="Buy FUTR"), R8*$D$4*SPANidx, R9))) -> 
B41: Interest p.m. @RFR | C41: =IF(OR(C$5="", C$8=""), "", C40*RFR/12) -> 216.96 | D41: 223.74 | E41: -37.064 | O41: =IF(OR(O$5="", O$8=""), "", O40*RFR/12) -> 216.96 | P41: =IF(OR(P$5="", P$8=""), "", P40*RFR/12) -> 223.74 | Q41: =IF(OR(Q$5="", Q$8=""), "", Q40*RFR/12) ->  | R41: =IF(OR(R$5="", R$8=""), "", R40*RFR/12) -> 
B42: =SUM(C33:H33) -> 4470 | C42: =SUM(C34:H34) -> 4470 | D42: =SUM(C35:H35) -> 4470 | E42: =SUM(C36:H36) -> 4470 | F42: =SUM(C37:H37) -> 4470 | G42: =SUM(C38:H38) -> 720 | H42: =SUM(C39:H39) -> -6780 | L42: =SUM(O33:R33) -> 23505 | M42: =SUM(O34:R34) -> 23505 | N42: =SUM(O35:R35) -> 19635 | O42: =SUM(O36:R36) -> 12135 | P42: =SUM(O37:R37) -> 4635 | Q42: =SUM(O38:R38) -> -6615 | R42: =SUM(O39:R39) -> -21615

Sheet LotSize
I2: Link to NSE website for strike interval
I3: https://www.nseindia.com/content/fo/fo_mktlots.csv
B4: BANKNIFTY | C4: 40 | D4: 40 | E4: 40
B5: ACC | C5: 400 | D5: 400 | E5: 400
B6: AMARAJABAT | C6: 600 | D6: 600 | E6: 700
B7: ADANIENT | C7: 4000 | D7: 4000 | E7: 4000
B8: ADANIPORTS | C8: 2500 | D8: 2500 | E8: 2500
B9: ALBK | C9: 10000 | D9: 10000 | E9: 10000
B10: AMBUJACEM | C10: 2500 | D10: 2500 | E10: 2500
B11: ANDHRABANK | C11: 10000 | D11: 10000 | E11: 10000
B12: APOLLOTYRE | C12: 3000 | D12: 3000 | E12: 3000
B13: ICICIBANK | C13: 2750 | D13: 2750 | E13: 2750
B14: ASHOKLEY | C14: 7000 | D14: 7000 | E14: 7000
B15: IDEA | C15: 7000 | D15: 7000 | E15: 7000
B16: APOLLOHOSP | C16: 500 | D16: 500 | E16: 500
B17: AUROPHARMA | C17: 800 | D17: 800 | E17: 800
B18: BAJAJ-AUTO | C18: 250 | D18: 250 | E18: 250
B19: BAJAJFINSV | C19: 125 | D19: 125 | E19: 125
B20: INDIGO | C20: 600 | D20: 600 | E20: 600
B21: BATAINDIA | C21: 1100 | D21: 1100 | E21: 1100
B22: ASIANPAINT | C22: 600 | D22: 600 | E22: 600
B23: AJANTPHARM | C23: 400 | D23: 400 | E23: 500
B24: BEML | C24: 300 | D24: 300 | E24: 300
B25: MARUTI | C25: 75 | D25: 75 | E25: 75
B26: AXISBANK | C26: 1200 | D26: 1200 | E26: 1200
B27: MFSL | C27: 1000 | D27: 1000 | E27: 1000
B28: BAJFINANCE | C28: 500 | D28: 500 | E28: 500
B29: BALKRISIND | C29: 400 | D29: 400 | E29: 400
B30: BALRAMCHIN | C30: 3500 | D30: 3500 | E30: 3500
B31: BERGEPAINT | C31: 2200 | D31: 2200 | E31: 2200
B32: BHARATFORG | C32: 1200 | D32: 1200 | E32: 1200
B33: BHARTIARTL | C33: 1700 | D33: 1700 | E33: 1700
B34: BEL | C34: 4950 | D34: 4950 | E34: 4950
B35: BHARATFIN | C35: 1000 | D35: 1000 | E35: 1000
B36: BHEL | C36: 7500 | D36: 7500 | E36: 7500
B37: BOSCHLTD | C37: 25 | D37: 25 | E37: 25
B38: NBCC | C38: 3000 | D38: 3000 | E38: 3000
B39: RAYMOND | C39: 800 | D39: 800 | E39: 800
B40: BANKBARODA | C40: 3500 | D40: 3500 | E40: 4000
B41: BPCL | C41: 1800 | D41: 1800 | E41: 1800
B42: BANKINDIA | C42: 6000 | D42: 6000 | E42: 6000
B43: CANFINHOME | C43: 1250 | D43: 1250 | E43: 1250
B44: CAPF | C44: 800 | D44: 800 | E44: 800
B45: CEATLTD | C45: 350 | D45: 350 | E45: 350
B46: CESC | C46: 550 | D46: 550 | E46: 550
B47: CGPOWER | C47: 12000 | D47: 12000 | E47: 12000
B48: CHENNPETRO | C48: 1500 | D48: 1500 | E48: 1500
B49: COALINDIA | C49: 1700 | D49: 1700 | E49: 2200
B50: TORNTPOWER | C50: 3000 | D50: 3000 | E50: 3000
B51: CONCOR | C51: 625 | D51: 625 | E51: 625
B52: CUMMINSIND | C52: 600 | D52: 600 | E52: 600
B53: CADILAHC | C53: 1600 | D53: 1600 | E53: 1600
B54: BIOCON | C54: 1800 | D54: 1800 | E54: 1800
B55: DHFL | C55: 1500 | D55: 1500 | E55: 1500
B56: DISHTV | C56: 7000 | D56: 7000 | E56: 7000
B57: CANBK | C57: 3084 | D57: 3084 | E57: 1600
B58: DIVISLAB | C58: 800 | D58: 800 | E58: 800
B59: DLF | C59: 5000 | D59: 5000 | E59: 5000
B60: DRREDDY | C60: 200 | D60: 200 | E60: 250
B61: EICHERMOT | C61: 25 | D61: 25 | E61: 25
B62: ESCORTS | C62: 1100 | D62: 1100 | E62: 1100
B63: EXIDEIND | C63: 4000 | D63: 4000 | E63: 4000
B64: FEDERALBNK | C64: 5500 | D64: 5500 | E64: 5500
B65: FORTIS | C65: 2700 | D65: 2700 | E65: 3500
B66: CASTROLIND | C66: 1400 | D66: 1400 | E66: 1400
B67: GLENMARK | C67: 700 | D67: 700 | E67: 900
B68: GODFRYPHLP | C68: 500 | D68: 500 | E68: 500
B69: GODREJIND | C69: 1500 | D69: 1500 | E69: 1500
B70: GRASIM | C70: 750 | D70: 750 | E70: 750
B71: HCC | C71: 12000 | D71: 12000 | E71: 15000
B72: HDFC | C72: 500 | D72: 500 | E72: 500
B73: HDFCBANK | C73: 500 | D73: 500 | E73: 500
B74: HDIL | C74: 8000 | D74: 8000 | E74: 9000
B75: CHOLAFIN | C75: 500 | D75: 500 | E75: 500
B76: HEROMOTOCO | C76: 200 | D76: 200 | E76: 200
B77: CIPLA | C77: 1000 | D77: 1000 | E77: 1000
B78: COLPAL | C78: 700 | D78: 700 | E78: 700
B79: HINDALCO | C79: 3500 | D79: 3500 | E79: 3500
B80: HINDPETRO | C80: 1575 | D80: 1575 | E80: 1575
B81: DABUR | C81: 2500 | D81: 2500 | E81: 2500
B82: HINDZINC | C82: 3200 | D82: 3200 | E82: 3200
B83: IBREALEST | C83: 2500
B84: ICICIPRULI | C84: 1300 | D84: 1300 | E84: 1300
B85: IDFC | C85: 13200 | D85: 13200 | E85: 13200
B86: IDFCBANK | C86: 9000 | D86: 9000 | E86: 9000
B87: DALMIABHA | C87: 300 | D87: 300 | E87: 300
B88: INDUSINDBK | C88: 300 | D88: 300 | E88: 300
B89: INFIBEAM | C89: 4000 | D89: 4000 | E89: 4000
B90: IRB | C90: 2500 | D90: 2500 | E90: 2500
B91: DCBBANK | C91: 4500 | D91: 4500 | E91: 4500
B92: ITC | C92: 2400 | D92: 2400 | E92: 2400
B93: JINDALSTEL | C93: 4500 | D93: 4500 | E93: 4500
B94: ENGINERSIN | C94: 3500 | D94: 3500 | E94: 3500
B95: JUSTDIAL | C95: 1200 | D95: 1200 | E95: 1400
B96: KOTAKBANK | C96: 800 | D96: 800 | E96: 800
B97: KPIT | C97: 4000 | D97: 4000 | E97: 4500
B98: GAIL | C98: 2000 | D98: 2000 | E98: 2000
B99: KTKBANK | C99: 3800 | D99: 3800 | E99: 3800
B100: L&TFH | C100: 4500 | D100: 4500 | E100: 4500
B101: LICHSGFIN | C101: 1100 | D101: 1100 | E101: 1100
B102: LUPIN | C102: 400 | D102: 400 | E102: 600
B103: GMRINFRA | C103: 45000 | D103: 45000 | E103: 45000
B104: M&MFIN | C104: 1250 | D104: 1250 | E104: 1250
B105: MANAPPURAM | C105: 6000 | D105: 6000 | E105: 6000
B106: GODREJCP | C106: 800 | D106: 800 | E106: 800
B107: GRANULES | C107: 5000 | D107: 5000 | E107: 5000
B108: MCX | C108: 500 | D108: 500 | E108: 500
B109: MGL | C109: 600 | D109: 600 | E109: 600
B110: MOTHERSUMI | C110: 3750 | D110: 3750 | E110: 1600
B111: HAVELLS | C111: 2000 | D111: 2000 | E111: 2000
B112: MRF | C112: 15 | D112: 15 | E112: 15
B113: HEXAWARE | C113: 3000 | D113: 3000 | E113: 3000
B114: HINDUNILVR | C114: 600 | D114: 600 | E114: 600
B115: IBULHSGFIN | C115: 400 | D115: 400 | E115: 400
B116: ICIL | C116: 3500 | D116: 3500 | E116: 5000
B117: INFRATEL | C117: 1700 | D117: 1700 | E117: 1700
B118: NATIONALUM | C118: 8000 | D118: 8000 | E118: 8000
B119: JISLJALEQS | C119: 9000 | D119: 9000 | E119: 9000
B120: JSWENERGY | C120: 8500 | D120: 8500 | E120: 8500
B121: NCC | C121: 8000 | D121: 8000 | E121: 8000
B122: JSWSTEEL | C122: 3000 | D122: 3000 | E122: 3000
B123: NESTLEIND | C123: 100 | D123: 100 | E123: 100
B124: IDBI | C124: 8000 | D124: 8000 | E124: 10000
B125: NIITTECH | C125: 1500 | D125: 1500 | E125: 1500
B126: INDIANB | C126: 2000 | D126: 2000 | E126: 2000
B127: NMDC | C127: 6000 | D127: 6000 | E127: 6000
B128: NTPC | C128: 4000 | D128: 4000 | E128: 4000
B129: OFSS | C129: 150 | D129: 150 | E129: 150
B130: OIL | C130: 2266 | D130: 2266 | E130: 2266
B131: M&M | C131: 500 | D131: 500 | E131: 500
B132: IOC | C132: 1500 | D132: 1500 | E132: 1500
B133: ONGC | C133: 3750 | D133: 3750 | E133: 3750
B134: ORIENTBANK | C134: 6000 | D134: 6000 | E134: 6000
B135: PAGEIND | C135: 50 | D135: 50 | E135: 50
B136: PCJEWELLER | C136: 1500 | D136: 1500 | E136: 1500
B137: JUBLFOOD | C137: 500 | D137: 500 | E137: 500
B138: PEL | C138: 300 | D138: 300 | E138: 300
B139: PFC | C139: 6000 | D139: 6000 | E139: 6000
B140: POWERGRID | C140: 4000 | D140: 4000 | E140: 4000
B141: PTC | C141: 8000 | D141: 8000 | E141: 8000
B142: KAJARIACER | C142: 800 | D142: 800 | E142: 800
B143: MARICO | C143: 2600 | D143: 2600 | E143: 2600
B144: MCDOWELL-N | C144: 250 | D144: 250 | E144: 250
B145: RELIANCE | C145: 1000 | D145: 1000 | E145: 1000
B146: RELINFRA | C146: 1300 | D146: 1300 | E146: 1300
B147: MRPL | C147: 4500 | D147: 4500 | E147: 4500
B148: RPOWER | C148: 12000 | D148: 12000 | E148: 13000
B149: SAIL | C149: 12000 | D149: 12000 | E149: 12000
B150: SHREECEM | C150: 50 | D150: 50 | E150: 50
B151: MUTHOOTFIN | C151: 1500 | D151: 1500 | E151: 1500
B152: SIEMENS | C152: 500 | D152: 500 | E152: 500
B153: SOUTHBANK | C153: 33141 | D153: 33141 | E153: 33141
B154: SREINFRA | C154: 5000 | D154: 5000 | E154: 5000
B155: SRF | C155: 500 | D155: 500 | E155: 500
B156: SRTRANSFIN | C156: 600 | D156: 600 | E156: 600
B157: STAR | C157: 500 | D157: 500 | E157: 600
B158: SUNTV | C158: 1000 | D158: 1000 | E158: 1000
B159: TATACHEM | C159: 1500 | D159: 1500 | E159: 1500
B160: TATAMOTORS | C160: 1500 | D160: 1500 | E160: 1500
B161: TATAMTRDVR | C161: 2100 | D161: 2100 | E161: 2500
B162: PETRONET | C162: 3000 | D162: 3000 | E162: 3000
B163: TATASTEEL | C163: 1000 | D163: 1000 | E163: 1000
B164: TCS | C164: 250 | D164: 250 | E164: 250
B165: TECHM | C165: 1100 | D165: 1100 | E165: 1200
B166: TORNTPHARM | C166: 400 | D166: 400 | E166: 500
B167: TVSMOTOR | C167: 1000 | D167: 1000 | E167: 1000
B168: UBL | C168: 700 | D168: 700 | E168: 700
B169: UJJIVAN | C169: 1200 | D169: 1200 | E169: 1600
B170: UNIONBANK | C170: 4000 | D170: 4000 | E170: 4000
B171: PIDILITIND | C171: 1000 | D171: 1000 | E171: 1000
B172: UPL | C172: 1200 | D172: 1200 | E172: 1200
B173: RAMCOCEM | C173: 800 | D173: 800 | E173: 800
B174: VEDL | C174: 1750 | D174: 1750 | E174: 1750
B175: VOLTAS | C175: 1000 | D175: 1000 | E175: 1000
B176: RBLBANK | C176: 1000 | D176: 1000 | E176: 1000
B177: WIPRO | C177: 2400 | D177: 2400 | E177: 2400
B178: RECLTD | C178: 6000 | D178: 6000 | E178: 6000
B179: RELCAPITAL | C179: 750 | D179: 750 | E179: 750
B180: MINDTREE | C180: 1200 | D180: 1200 | E180: 1200
B181: YESBANK | C181: 1750 | D181: 1750 | E181: 1750
B182: ADANIPOWER | C182: 20000 | D182: 20000 | E182: 20000
B183: ARVIND | C183: 2000 | D183: 2000 | E183: 2000
B184: BRITANNIA | C184: 200 | D184: 200 | E184: 200
B185: TV18BRDCST | C185: 17000 | D185: 17000 | E185: 17000
B186: EQUITAS | C186: 3200 | D186: 3200 | E186: 3200
B187: GSFC | C187: 4500 | D187: 4500 | E187: 4500
B188: IGL | C188: 2750 | D188: 2750 | E188: 2750
B189: INFY | C189: 500 | D189: 500 | E189: 600
B190: JETAIRWAYS | C190: 1200 | D190: 1200 | E190: 1200
B191: KSCL | C191: 1500 | D191: 1500 | E191: 1500
B192: NHPC | C192: 27000 | D192: 27000 | E192: 27000
B193: WOCKPHARMA | C193: 800 | D193: 800 | E193: 900
B194: PNB | C194: 3500 | D194: 3500 | E194: 4000
B195: RNAVAL | C195: 9000 | D195: 9000 | E195: 9000
B196: REPCOHOME | C196: 700 | D196: 700 | E196: 900
B197: CENTURYTEX | C197: 550 | D197: 550 | E197: 550
B198: SBIN | C198: 3000 | D198: 3000 | E198: 3000
B199: HCLTECH | C199: 700 | D199: 700 | E199: 700
B200: SYNDIBANK | C200: 9000 | D200: 9000 | E200: 9000
B201: TATACOMM | C201: 700 | D201: 700 | E201: 800
... 15 more rows

Sheet StrikeInterval
G2: Link to NSE website for strike interval
G3: https://www.nseindia.com/content/fo/sos_scheme.xls
B4: Symbol | C4: Applicable Step value | D4: No. of Strikes Provided In the money - At the money - Out of the money | E4: No of additional strikes which may be enabled intraday
B5: ACC | C5: 20 | D5: 10 - 1 - 10 | E5: 10
B6: ADANIENT | C6: 5 | D6: 6 - 1 - 6 | E6: 6
B7: ADANIPORTS | C7: 10 | D7: 9 - 1 - 9 | E7: 9
B8: ADANIPOWER | C8: 2.5 | D8: 5 - 1 - 5 | E8: 5
B9: AJANTPHARM | C9: 20 | D9: 10 - 1 - 10 | E9: 10
B10: ALBK | C10: 2.5 | D10: 6 - 1 - 6 | E10: 6
B11: AMARAJABAT | C11: 20 | D11: 8 - 1 - 8 | E11: 8
B12: AMBUJACEM | C12: 5 | D12: 10 - 1 - 10 | E12: 10
B13: ANDHRABANK | C13: 2.5 | D13: 5 - 1 - 5 | E13: 5
B14: APOLLOHOSP | C14: 20 | D14: 10 - 1 - 10 | E14: 10
B15: APOLLOTYRE | C15: 10 | D15: 6 - 1 - 6 | E15: 6
B16: ARVIND | C16: 10 | D16: 9 - 1 - 9 | E16: 9
B17: ASHOKLEY | C17: 2.5 | D17: 10 - 1 - 10 | E17: 10
B18: ASIANPAINT | C18: 20 | D18: 10 - 1 - 10 | E18: 10
B19: AUROPHARMA | C19: 20 | D19: 8 - 1 - 8 | E19: 8
B20: AXISBANK | C20: 10 | D20: 10 - 1 - 10 | E20: 10
B21: BAJAJ-AUTO | C21: 50 | D21: 10 - 1 - 10 | E21: 10
B22: BAJAJFINSV | C22: 50 | D22: 10 - 1 - 10 | E22: 10
B23: BAJFINANCE | C23: 50 | D23: 8 - 1 - 8 | E23: 8
B24: BALKRISIND | C24: 50 | D24: 7 - 1 - 7 | E24: 7
B25: BALRAMCHIN | C25: 5 | D25: 7 - 1 - 7 | E25: 7
B26: BANKBARODA | C26: 5 | D26: 6 - 1 - 6 | E26: 6
B27: BANKINDIA | C27: 5 | D27: 7 - 1 - 7 | E27: 7
B28: BATAINDIA | C28: 20 | D28: 8 - 1 - 8 | E28: 8
B29: BEL | C29: 5 | D29: 8 - 1 - 8 | E29: 8
B30: BEML | C30: 50 | D30: 8 - 1 - 8 | E30: 8
B31: BERGEPAINT | C31: 5 | D31: 10 - 1 - 10 | E31: 10
B32: BHARATFIN | C32: 20 | D32: 10 - 1 - 10 | E32: 10
B33: BHARATFORG | C33: 10 | D33: 10 - 1 - 10 | E33: 10
B34: BHARTIARTL | C34: 10 | D34: 8 - 1 - 8 | E34: 8
B35: BHEL | C35: 2.5 | D35: 10 - 1 - 10 | E35: 10
B36: BIOCON | C36: 10 | D36: 7 - 1 - 7 | E36: 7
B37: BOSCHLTD | C37: 50 | D37: 10 - 1 - 10 | E37: 10
B38: BPCL | C38: 10 | D38: 10 - 1 - 10 | E38: 10
B39: BRITANNIA | C39: 50 | D39: 10 - 1 - 10 | E39: 10
B40: CADILAHC | C40: 20 | D40: 5 - 1 - 5 | E40: 5
B41: CANBK | C41: 10 | D41: 7 - 1 - 7 | E41: 7
B42: CANFINHOME | C42: 10 | D42: 10 - 1 - 10 | E42: 10
B43: CAPF | C43: 20 | D43: 8 - 1 - 8 | E43: 8
B44: CASTROLIND | C44: 5 | D44: 10 - 1 - 10 | E44: 10
B45: CEATLTD | C45: 50 | D45: 7 - 1 - 7 | E45: 7
B46: CENTURYTEX | C46: 50 | D46: 6 - 1 - 6 | E46: 6
B47: CESC | C47: 20 | D47: 10 - 1 - 10 | E47: 10
B48: CGPOWER | C48: 2.5 | D48: 7 - 1 - 7 | E48: 7
B49: CHENNPETRO | C49: 20 | D49: 5 - 1 - 5 | E49: 5
B50: CHOLAFIN | C50: 20 | D50: 10 - 1 - 10 | E50: 10
B51: CIPLA | C51: 10 | D51: 10 - 1 - 10 | E51: 10
B52: COALINDIA | C52: 5 | D52: 10 - 1 - 10 | E52: 10
B53: COLPAL | C53: 20 | D53: 10 - 1 - 10 | E53: 10
B54: CONCOR | C54: 20 | D54: 10 - 1 - 10 | E54: 10
B55: CUMMINSIND | C55: 20 | D55: 10 - 1 - 10 | E55: 10
B56: DABUR | C56: 5 | D56: 10 - 1 - 10 | E56: 10
B57: DALMIABHA | C57: 50 | D57: 10 - 1 - 10 | E57: 10
B58: DCBBANK | C58: 5 | D58: 8 - 1 - 8 | E58: 8
B59: DHFL | C59: 20 | D59: 6 - 1 - 6 | E59: 6
B60: DISHTV | C60: 2.5 | D60: 7 - 1 - 7 | E60: 7
B61: DIVISLAB | C61: 20 | D61: 9 - 1 - 9 | E61: 9
B62: DLF | C62: 10 | D62: 5 - 1 - 5 | E62: 5
B63: DRREDDY | C63: 50 | D63: 9 - 1 - 9 | E63: 9
B64: EICHERMOT | C64: 50 | D64: 10 - 1 - 10 | E64: 10
B65: ENGINERSIN | C65: 2.5 | D65: 10 - 1 - 10 | E65: 10
B66: EQUITAS | C66: 5 | D66: 7 - 1 - 7 | E66: 7
B67: ESCORTS | C67: 20 | D67: 7 - 1 - 7 | E67: 7
B68: EXIDEIND | C68: 5 | D68: 9 - 1 - 9 | E68: 9
B69: FEDERALBNK | C69: 2.5 | D69: 10 - 1 - 10 | E69: 10
B70: FORTIS | C70: 5 | D70: 6 - 1 - 6 | E70: 6
B71: GAIL | C71: 10 | D71: 8 - 1 - 8 | E71: 8
B72: GLENMARK | C72: 10 | D72: 10 - 1 - 10 | E72: 10
B73: GMRINFRA | C73: 2.5 | D73: 5 - 1 - 5 | E73: 5
B74: GODFRYPHLP | C74: 50 | D74: 5 - 1 - 5 | E74: 5
B75: GODREJCP | C75: 20 | D75: 10 - 1 - 10 | E75: 10
B76: GODREJIND | C76: 20 | D76: 7 - 1 - 7 | E76: 7
B77: GRANULES | C77: 5 | D77: 5 - 1 - 5 | E77: 5
B78: GRASIM | C78: 20 | D78: 10 - 1 - 10 | E78: 10
B79: GSFC | C79: 5 | D79: 6 - 1 - 6 | E79: 6
B80: HAVELLS | C80: 10 | D80: 10 - 1 - 10 | E80: 10
B81: HCC | C81: 2.5 | D81: 5 - 1 - 5 | E81: 5
B82: HCLTECH | C82: 20 | D82: 9 - 1 - 9 | E82: 9
B83: HDFC | C83: 20 | D83: 10 - 1 - 10 | E83: 10
B84: HDFCBANK | C84: 20 | D84: 10 - 1 - 10 | E84: 10
B85: HDIL | C85: 2.5 | D85: 5 - 1 - 5 | E85: 5
B86: HEROMOTOCO | C86: 50 | D86: 10 - 1 - 10 | E86: 10
B87: HEXAWARE | C87: 5 | D87: 10 - 1 - 10 | E87: 10
B88: HINDALCO | C88: 5 | D88: 10 - 1 - 10 | E88: 10
B89: HINDPETRO | C89: 20 | D89: 5 - 1 - 5 | E89: 5
B90: HINDUNILVR | C90: 20 | D90: 10 - 1 - 10 | E90: 10
B91: HINDZINC | C91: 5 | D91: 10 - 1 - 10 | E91: 10
B92: IBREALEST | C92: 10 | D92: 5 - 1 - 5 | E92: 5
B93: IBULHSGFIN | C93: 20 | D93: 10 - 1 - 10 | E93: 10
B94: ICICIBANK | C94: 5 | D94: 10 - 1 - 10 | E94: 10
B95: ICICIPRULI | C95: 10 | D95: 9 - 1 - 9 | E95: 9
B96: ICIL | C96: 5 | D96: 5 - 1 - 5 | E96: 5
B97: IDBI | C97: 2.5 | D97: 5 - 1 - 5 | E97: 5
B98: IDEA | C98: 2.5 | D98: 7 - 1 - 7 | E98: 7
B99: IDFC | C99: 2.5 | D99: 5 - 1 - 5 | E99: 5
B100: IDFCBANK | C100: 2.5 | D100: 5 - 1 - 5 | E100: 5
B101: IFCI | C101: 2.5 | D101: 5 - 1 - 5 | E101: 5
B102: IGL | C102: 10 | D102: 6 - 1 - 6 | E102: 6
B103: INDIACEM | C103: 5 | D103: 8 - 1 - 8 | E103: 8
B104: INDIANB | C104: 10 | D104: 6 - 1 - 6 | E104: 6
B105: INDIGO | C105: 20 | D105: 10 - 1 - 10 | E105: 10
B106: INDUSINDBK | C106: 20 | D106: 10 - 1 - 10 | E106: 10
B107: INFIBEAM | C107: 5 | D107: 6 - 1 - 6 | E107: 6
B108: INFRATEL | C108: 10 | D108: 8 - 1 - 8 | E108: 8
B109: INFY | C109: 20 | D109: 9 - 1 - 9 | E109: 9
B110: IOC | C110: 10 | D110: 9 - 1 - 9 | E110: 9
B111: IRB | C111: 5 | D111: 9 - 1 - 9 | E111: 9
B112: ITC | C112: 10 | D112: 6 - 1 - 6 | E112: 6
B113: JETAIRWAYS | C113: 20 | D113: 6 - 1 - 6 | E113: 6
B114: JINDALSTEL | C114: 5 | D114: 6 - 1 - 6 | E114: 6
B115: JISLJALEQS | C115: 2.5 | D115: 9 - 1 - 9 | E115: 9
B116: JPASSOCIAT | C116: 2.5 | D116: 5 - 1 - 5 | E116: 5
B117: JSWENERGY | C117: 2.5 | D117: 7 - 1 - 7 | E117: 7
B118: JSWSTEEL | C118: 5 | D118: 10 - 1 - 10 | E118: 10
B119: JUBLFOOD | C119: 50 | D119: 6 - 1 - 6 | E119: 6
B120: JUSTDIAL | C120: 10 | D120: 8 - 1 - 8 | E120: 8
B121: KAJARIACER | C121: 20 | D121: 7 - 1 - 7 | E121: 7
B122: KOTAKBANK | C122: 20 | D122: 10 - 1 - 10 | E122: 10
B123: KPIT | C123: 5 | D123: 5 - 1 - 5 | E123: 5
B124: KSCL | C124: 20 | D124: 6 - 1 - 6 | E124: 6
B125: KTKBANK | C125: 5 | D125: 7 - 1 - 7 | E125: 7
B126: L&TFH | C126: 5 | D126: 9 - 1 - 9 | E126: 9
B127: LICHSGFIN | C127: 10 | D127: 10 - 1 - 10 | E127: 10
B128: LT | C128: 20 | D128: 10 - 1 - 10 | E128: 10
B129: LUPIN | C129: 20 | D129: 10 - 1 - 10 | E129: 10
B130: M&M | C130: 20 | D130: 10 - 1 - 10 | E130: 10
B131: M&MFIN | C131: 10 | D131: 9 - 1 - 9 | E131: 9
B132: MANAPPURAM | C132: 5 | D132: 5 - 1 - 5 | E132: 5
B133: MARICO | C133: 5 | D133: 10 - 1 - 10 | E133: 10
B134: MARUTI | C134: 50 | D134: 10 - 1 - 10 | E134: 10
B135: MCDOWELL-N | C135: 50 | D135: 10 - 1 - 10 | E135: 10
B136: MCX | C136: 20 | D136: 10 - 1 - 10 | E136: 10
B137: MFSL | C137: 10 | D137: 10 - 1 - 10 | E137: 10
B138: MGL | C138: 20 | D138: 10 - 1 - 10 | E138: 10
B139: MINDTREE | C139: 10 | D139: 10 - 1 - 10 | E139: 10
B140: MOTHERSUMI | C140: 10 | D140: 7 - 1 - 7 | E140: 7
B141: MRF | C141: 50 | D141: 10 - 1 - 10 | E141: 10
B142: MRPL | C142: 5 | D142: 6 - 1 - 6 | E142: 6
B143: MUTHOOTFIN | C143: 20 | D143: 5 - 1 - 5 | E143: 5
B144: NATIONALUM | C144: 2.5 | D144: 7 - 1 - 7 | E144: 7
B145: NBCC | C145: 5 | D145: 9 - 1 - 9 | E145: 9
B146: NCC | C146: 2.5 | D146: 8 - 1 - 8 | E146: 8
B147: NESTLEIND | C147: 50 | D147: 10 - 1 - 10 | E147: 10
B148: NHPC | C148: 2.5 | D148: 5 - 1 - 5 | E148: 5
B149: NIITTECH | C149: 10 | D149: 10 - 1 - 10 | E149: 10
B150: NMDC | C150: 2.5 | D150: 10 - 1 - 10 | E150: 10
B151: NTPC | C151: 2.5 | D151: 10 - 1 - 10 | E151: 10
B152: OFSS | C152: 50 | D152: 10 - 1 - 10 | E152: 10
B153: OIL | C153: 10 | D153: 7 - 1 - 7 | E153: 7
B154: ONGC | C154: 2.5 | D154: 10 - 1 - 10 | E154: 10
B155: ORIENTBANK | C155: 5 | D155: 6 - 1 - 6 | E155: 6
B156: PAGEIND | C156: 50 | D156: 10 - 1 - 10 | E156: 10
B157: PCJEWELLER | C157: 10 | D157: 7 - 1 - 7 | E157: 7
B158: PEL | C158: 50 | D158: 10 - 1 - 10 | E158: 10
B159: PETRONET | C159: 5 | D159: 10 - 1 - 10 | E159: 10
B160: PFC | C160: 5 | D160: 6 - 1 - 6 | E160: 6
B161: PIDILITIND | C161: 20 | D161: 9 - 1 - 9 | E161: 9
B162: PNB | C162: 5 | D162: 6 - 1 - 6 | E162: 6
B163: POWERGRID | C163: 2.5 | D163: 10 - 1 - 10 | E163: 10
B164: PTC | C164: 5 | D164: 5 - 1 - 5 | E164: 5
B165: PVR | C165: 20 | D165: 10 - 1 - 10 | E165: 10
B166: RAMCOCEM | C166: 20 | D166: 8 - 1 - 8 | E166: 8
B167: RAYMOND | C167: 20 | D167: 9 - 1 - 9 | E167: 9
B168: RBLBANK | C168: 10 | D168: 10 - 1 - 10 | E168: 10
B169: RCOM | C169: 2.5 | D169: 5 - 1 - 5 | E169: 5
B170: RECLTD | C170: 5 | D170: 7 - 1 - 7 | E170: 7
B171: RELCAPITAL | C171: 20 | D171: 8 - 1 - 8 | E171: 8
B172: RELIANCE | C172: 20 | D172: 9 - 1 - 9 | E172: 9
B173: RELINFRA | C173: 20 | D173: 5 - 1 - 5 | E173: 5
B174: REPCOHOME | C174: 20 | D174: 7 - 1 - 7 | E174: 7
B175: RNAVAL | C175: 2.5 | D175: 5 - 1 - 5 | E175: 5
B176: RPOWER | C176: 2.5 | D176: 5 - 1 - 5 | E176: 5
B177: SAIL | C177: 2.5 | D177: 5 - 1 - 5 | E177: 5
B178: SBIN | C178: 5 | D178: 10 - 1 - 10 | E178: 10
B179: SHREECEM | C179: 50 | D179: 10 - 1 - 10 | E179: 10
B180: SIEMENS | C180: 20 | D180: 10 - 1 - 10 | E180: 10
B181: SOUTHBANK | C181: 2.5 | D181: 5 - 1 - 5 | E181: 5
B182: SREINFRA | C182: 5 | D182: 5 - 1 - 5 | E182: 5
B183: SRF | C183: 50 | D183: 7 - 1 - 7 | E183: 7
B184: SRTRANSFIN | C184: 20 | D184: 10 - 1 - 10 | E184: 10
B185: STAR | C185: 20 | D185: 10 - 1 - 10 | E185: 10
B186: SUNPHARMA | C186: 20 | D186: 6 - 1 - 6 | E186: 6
B187: SUNTV | C187: 20 | D187: 9 - 1 - 9 | E187: 9
B188: SUZLON | C188: 2.5 | D188: 5 - 1 - 5 | E188: 5
B189: SYNDIBANK | C189: 2.5 | D189: 6 - 1 - 6 | E189: 6
B190: TATACHEM | C190: 10 | D190: 10 - 1 - 10 | E190: 10
B191: TATACOMM | C191: 20 | D191: 7 - 1 - 7 | E191: 7
B192: TATAELXSI | C192: 50 | D192: 8 - 1 - 8 | E192: 8
B193: TATAGLOBAL | C193: 5 | D193: 9 - 1 - 9 | E193: 9
B194: TATAMOTORS | C194: 10 | D194: 8 - 1 - 8 | E194: 8
B195: TATAMTRDVR | C195: 5 | D195: 10 - 1 - 10 | E195: 10
B196: TATAPOWER | C196: 2.5 | D196: 7 - 1 - 7 | E196: 7
B197: TATASTEEL | C197: 10 | D197: 10 - 1 - 10 | E197: 10
B198: TCS | C198: 50 | D198: 10 - 1 - 10 | E198: 10
B199: TECHM | C199: 10 | D199: 9 - 1 - 9 | E199: 9
B200: TITAN | C200: 10 | D200: 10 - 1 - 10 | E200: 10
B201: TORNTPHARM | C201: 50 | D201: 5 - 1 - 5 | E201: 5
... 15 more rows

Sheet NIFTY_Option_Chain
J2: NIFTY | K2: PCR | L2: =OFFSET(V13, COUNTA(B13:B500), 0)/OFFSET(B13, COUNTA(B13:B500), 0) -> 1.205571717 | M2: OI
K3: PCR | L3: =OFFSET(T13, COUNTA(B13:B500), 0)/OFFSET(D13, COUNTA(B13:B500), 0) -> 1.134430109 | M3: Volume
K4: PCR | L4: =(OFFSET(V13, COUNTA(B13:B500), 0)+OFFSET(T13, COUNTA(B13:B500), 0))/(OFFSET(B13, COUNTA(B13:B500), 0)+OFFSET(D13, COUNTA(B13:B500), 0)) -> 1.203557113 | M4: OI + Volume
B5: Underlying Index: NIFTY 10389.70 As on Nov 24, 2017 15:30:30 IST
A6: View Options Contracts for:
A7: OR
A8: Filter by: Expiry Date
A9: Futures contracts
A12: CALLS | M12: PUTS
A13: Chart | B13: OI | C13: Chng in OI | D13: Volume | E13: IV | F13: LTP | G13: Net Chng | H13: Bid | I13: Bid | J13: Ask | K13: Ask | L13: Strike Price | M13: Bid | N13: Bid | O13: Ask | P13: Ask | Q13: Net Chng | R13: LTP | S13: IV | T13: Volume | U13: Chng in OI | V13: OI | W13: Chart
H14: Qty | I14: Price | J14: Price | K14: Qty | M14: Qty | N14: Price | O14: Price | P14: Qty
A15: Graph | B15: 50400 | C15: -150 | D15: 3 | E15: - | F15: 2149 | G15: 40.8 | H15: 75 | I15: 2155 | J15: 2163.2 | K15: 75 | L15: 8250 | M15: 75 | N15: 0.15 | O15: 0.25 | P15: 2925 | Q15: -0.25 | R15: 0.1 | S15: 55.67 | T15: 42 | U15: -2925 | V15: 17775 | W15: Graph
A16: Graph | B16: 1488375 | C16: -11400 | D16: 153 | E16: - | F16: 2102.8 | G16: 36.35 | H16: 75 | I16: 2102.75 | J16: 2114.35 | K16: 300 | L16: 8300 | M16: 4800 | N16: 0.05 | O16: 0.1 | P16: 6000 | Q16: 0.05 | R16: 0.15 | S16: 56.06 | T16: 236 | U16: -15825 | V16: 227025 | W16: Graph
A17: Graph | B17: - | C17: - | D17: - | E17: - | F17: - | G17: - | H17: 1200 | I17: 1733.95 | J17: - | K17: - | L17: 8350 | M17: - | N17: - | O17: 2.4 | P17: 7500 | Q17: - | R17: 1 | S17: 65.06 | T17: 1 | U17: - | V17: 525 | W17: Graph
A18: Graph | B18: 195375 | C18: -1950 | D18: 36 | E18: 59.78 | F18: 2004.05 | G18: 38 | H18: 75 | I18: 2005.25 | J18: 2012.8 | K18: 75 | L18: 8400 | M18: 900 | N18: 0.2 | O18: 0.3 | P18: 75 | Q18: -0.1 | R18: 0.3 | S18: 56.5 | T18: 42 | U18: -525 | V18: 94275 | W18: Graph
A19: Graph | B19: - | C19: - | D19: - | E19: - | F19: - | G19: - | H19: 1200 | I19: 1633.7 | J19: - | K19: - | L19: 8450 | M19: - | N19: - | O19: 2.4 | P19: 7500 | Q19: - | R19: - | S19: - | T19: - | U19: - | V19: - | W19: Graph
A20: Graph | B20: 744150 | C20: -89925 | D20: 1484 | E20: - | F20: 1894.7 | G20: 36.4 | H20: 75 | I20: 1907 | J20: 1914.25 | K20: 300 | L20: 8500 | M20: 44475 | N20: 0.15 | O20: 0.25 | P20: 1200 | Q20: - | R20: 0.2 | S20: 51.78 | T20: 807 | U20: -38175 | V20: 223950 | W20: Graph
A21: Graph | B21: - | C21: - | D21: - | E21: - | F21: - | G21: - | H21: 1200 | I21: 1533.4 | J21: - | K21: - | L21: 8550 | M21: - | N21: - | O21: 2.4 | P21: 7500 | Q21: - | R21: - | S21: - | T21: - | U21: - | V21: - | W21: Graph
A22: Graph | B22: 82875 | C22: -300 | D22: 24 | E22: - | F22: 1803.75 | G22: 45.85 | H22: 75 | I22: 1805.3 | J22: 1811.7 | K22: 75 | L22: 8600 | M22: 600 | N22: 0.1 | O22: 0.2 | P22: 1200 | Q22: 0.1 | R22: 0.35 | S22: 51.48 | T22: 2 | U22: -150 | V22: 48900 | W22: Graph
A23: Graph | B23: - | C23: - | D23: - | E23: - | F23: - | G23: - | H23: 750 | I23: 1738.4 | J23: 1777.4 | K23: 750 | L23: 8650 | M23: - | N23: - | O23: 2.4 | P23: 7500 | Q23: - | R23: - | S23: - | T23: - | U23: - | V23: - | W23: Graph
A24: Graph | B24: 33075 | C24: -825 | D24: 11 | E24: - | F24: 1694.1 | G24: 72.1 | H24: 375 | I24: 1705.1 | J24: 1712.15 | K24: 75 | L24: 8700 | M24: 11100 | N24: 0.1 | O24: 0.2 | P24: 2850 | Q24: -0.3 | R24: 0.2 | S24: 46.26 | T24: 105 | U24: -6525 | V24: 45600 | W24: Graph
A25: Graph | B25: - | C25: - | D25: - | E25: - | F25: - | G25: - | H25: 1200 | I25: 1332.85 | J25: - | K25: - | L25: 8750 | M25: - | N25: - | O25: 2.4 | P25: 7500 | Q25: - | R25: - | S25: - | T25: - | U25: - | V25: - | W25: Graph
A26: Graph | B26: 93300 | C26: -1500 | D26: 40 | E26: 60.1 | F26: 1608 | G26: 98 | H26: 150 | I26: 1605.2 | J26: 1614.15 | K26: 75 | L26: 8800 | M26: 16500 | N26: 0.15 | O26: 0.25 | P26: 4350 | Q26: -0.3 | R26: 0.25 | S26: 44.39 | T26: 454 | U26: - | V26: 86175 | W26: Graph
A27: Graph | B27: - | C27: - | D27: - | E27: - | F27: - | G27: - | H27: 1200 | I27: 1232.55 | J27: - | K27: - | L27: 8850 | M27: - | N27: - | O27: 2.4 | P27: 7500 | Q27: - | R27: - | S27: - | T27: - | U27: - | V27: - | W27: Graph
A28: Graph | B28: 35625 | C28: -1500 | D28: 36 | E28: 61.88 | F28: 1511.3 | G28: 52.7 | H28: 75 | I28: 1507 | J28: 1518.65 | K28: 75 | L28: 8900 | M28: 3000 | N28: 0.25 | O28: 0.6 | P28: 3150 | Q28: - | R28: 0.55 | S28: 44.86 | T28: 142 | U28: -8175 | V28: 173700 | W28: Graph
A29: Graph | B29: - | C29: - | D29: - | E29: - | F29: - | G29: - | H29: 1200 | I29: 1132.3 | J29: - | K29: - | L29: 8950 | M29: 37500 | N29: 0.05 | O29: 2.4 | P29: 7500 | Q29: - | R29: - | S29: - | T29: - | U29: - | V29: - | W29: Graph
A30: Graph | B30: 594000 | C30: -28200 | D30: 501 | E30: 63.68 | F30: 1416.35 | G30: 53.5 | H30: 75 | I30: 1404.85 | J30: 1416.35 | K30: 150 | L30: 9000 | M30: 7275 | N30: 0.35 | O30: 0.55 | P30: 375 | Q30: -0.4 | R30: 0.35 | S30: 40.13 | T30: 769 | U30: -12075 | V30: 677625 | W30: Graph
A31: Graph | B31: - | C31: - | D31: - | E31: - | F31: - | G31: - | H31: 1200 | I31: 1032 | J31: - | K31: - | L31: 9050 | M31: 150 | N31: 0.2 | O31: 2 | P31: 75 | Q31: - | R31: 2 | S31: - | T31: - | U31: - | V31: 375 | W31: Graph
A32: Graph | B32: 53250 | C32: -1875 | D32: 33 | E32: 53.5 | F32: 1311 | G32: 57 | H32: 75 | I32: 1303.4 | J32: 1315.9 | K32: 75 | L32: 9100 | M32: 1500 | N32: 0.4 | O32: 0.5 | P32: 900 | Q32: -0.35 | R32: 0.5 | S32: 38.67 | T32: 281 | U32: 600 | V32: 109950 | W32: Graph
A33: Graph | B33: - | C33: - | D33: - | E33: - | F33: - | G33: - | H33: 1200 | I33: 931.75 | J33: - | K33: - | L33: 9150 | M33: 27525 | N33: 0.05 | O33: 2.4 | P33: 7500 | Q33: - | R33: - | S33: - | T33: - | U33: - | V33: - | W33: Graph
A34: Graph | B34: 116175 | C34: -2700 | D34: 50 | E34: 44.79 | F34: 1208 | G34: 52 | H34: 75 | I34: 1206.2 | J34: 1214.4 | K34: 1425 | L34: 9200 | M34: 1500 | N34: 0.5 | O34: 0.6 | P34: 6225 | Q34: -0.35 | R34: 0.6 | S34: 36.5 | T34: 298 | U34: -2175 | V34: 538425 | W34: Graph
A35: Graph | B35: - | C35: - | D35: - | E35: - | F35: - | G35: - | H35: 1200 | I35: 831.5 | J35: - | K35: - | L35: 9250 | M35: 35025 | N35: 0.05 | O35: 2.4 | P35: 7500 | Q35: - | R35: - | S35: - | T35: - | U35: - | V35: - | W35: Graph
A36: Graph | B36: 81750 | C36: -4950 | D36: 83 | E36: 35.68 | F36: 1106 | G36: 56 | H36: 75 | I36: 1106 | J36: 1116.75 | K36: 300 | L36: 9300 | M36: 3075 | N36: 0.5 | O36: 0.6 | P36: 75 | Q36: -0.45 | R36: 0.55 | S36: 33.29 | T36: 2794 | U36: -36450 | V36: 482400 | W36: Graph
A37: Graph | B37: - | C37: - | D37: - | E37: - | F37: - | G37: - | H37: 1200 | I37: 731.2 | J37: - | K37: - | L37: 9350 | M37: 15000 | N37: 0.15 | O37: 2.45 | P37: 900 | Q37: - | R37: - | S37: - | T37: - | U37: - | V37: - | W37: Graph
A38: Graph | B38: 80475 | C38: -1425 | D38: 24 | E38: 39.82 | F38: 1009.5 | G38: 51.7 | H38: 75 | I38: 1007.9 | J38: 1018.5 | K38: 75 | L38: 9400 | M38: 1500 | N38: 0.5 | O38: 0.55 | P38: 75 | Q38: -0.45 | R38: 0.5 | S38: 30.12 | T38: 476 | U38: -4875 | V38: 606750 | W38: Graph
A39: Graph | B39: - | C39: - | D39: - | E39: - | F39: - | G39: - | H39: 1200 | I39: 630.95 | J39: - | K39: - | L39: 9450 | M39: 7500 | N39: 0.25 | O39: 2.9 | P39: 6000 | Q39: -0.1 | R39: 0.3 | S39: 27.25 | T39: 2 | U39: - | V39: 225 | W39: Graph
A40: Graph | B40: 276075 | C40: -12825 | D40: 326 | E40: 35.34 | F40: 909 | G40: 46.55 | H40: 75 | I40: 911.9 | J40: 915.4 | K40: 150 | L40: 9500 | M40: 150 | N40: 0.55 | O40: 0.6 | P40: 4350 | Q40: -0.5 | R40: 0.55 | S40: 27.58 | T40: 5814 | U40: 37350 | V40: 1116450 | W40: Graph
A41: Graph | B41: - | C41: - | D41: - | E41: - | F41: - | G41: - | H41: 1200 | I41: 530.65 | J41: - | K41: - | L41: 9550 | M41: 15000 | N41: 0.2 | O41: 2.9 | P41: 6000 | Q41: - | R41: 3.1 | S41: - | T41: - | U41: - | V41: 600 | W41: Graph
A42: Graph | B42: 158475 | C42: -25650 | D42: 507 | E42: 35.4 | F42: 812.3 | G42: 52.3 | H42: 75 | I42: 809.1 | J42: 813.8 | K42: 150 | L42: 9600 | M42: 225 | N42: 1 | O42: 1.05 | P42: 1050 | Q42: -0.3 | R42: 1.05 | S42: 26.68 | T42: 7086 | U42: -21225 | V42: 1292925 | W42: Graph
A43: Graph | B43: - | C43: - | D43: - | E43: - | F43: - | G43: - | H43: 750 | I43: 744.2 | J43: 780.3 | K43: 750 | L43: 9650 | M43: 15000 | N43: 0.2 | O43: 2.9 | P43: 6000 | Q43: - | R43: - | S43: - | T43: - | U43: - | V43: - | W43: Graph
A44: Graph | B44: 188700 | C44: -6600 | D44: 119 | E44: - | F44: 704.95 | G44: 38.2 | H44: 75 | I44: 708.35 | J44: 714.15 | K44: 1500 | L44: 9700 | M44: 75 | N44: 1.1 | O44: 1.15 | P44: 24375 | Q44: -0.25 | R44: 1.15 | S44: 23.92 | T44: 19242 | U44: -153150 | V44: 1526625 | W44: Graph
A45: Graph | B45: 300 | C45: - | D45: - | E45: - | F45: 560.6 | G45: - | H45: 750 | I45: 640.8 | J45: 664.4 | K45: 225 | L45: 9750 | M45: 7500 | N45: 0.45 | O45: 1.5 | P45: 300 | Q45: - | R45: 0.85 | S45: - | T45: - | U45: - | V45: 4425 | W45: Graph
A46: Graph | B46: 165300 | C46: -5400 | D46: 130 | E46: - | F46: 601.95 | G46: 34.8 | H46: 150 | I46: 609.1 | J46: 612.25 | K46: 150 | L46: 9800 | M46: 4050 | N46: 1.4 | O46: 1.45 | P46: 7950 | Q46: -0.35 | R46: 1.4 | S46: 21.42 | T46: 21268 | U46: -1275 | V46: 1627125 | W46: Graph
A47: Graph | B47: 150 | C47: - | D47: - | E47: - | F47: 515.95 | G47: - | H47: 750 | I47: 545.7 | J47: 574.3 | K47: 750 | L47: 9850 | M47: 75 | N47: 1.2 | O47: 1.5 | P47: 75 | Q47: -0.8 | R47: 1.15 | S47: 19.31 | T47: 711 | U47: -9825 | V47: 76200 | W47: Graph
A48: Graph | B48: 464025 | C48: -35550 | D48: 768 | E48: 25.38 | F48: 514.9 | G48: 46.75 | H48: 75 | I48: 514.2 | J48: 519.95 | K48: 75 | L48: 9900 | M48: 2250 | N48: 1.75 | O48: 1.9 | P48: 5325 | Q48: -0.85 | R48: 1.8 | S48: 18.95 | T48: 42839 | U48: -5250 | V48: 2879400 | W48: Graph
A49: Graph | B49: 3450 | C49: - | D49: 20 | E49: 20.8 | F49: 461.2 | G49: 31.2 | H49: 600 | I49: 453 | J49: 464.4 | K49: 1125 | L49: 9950 | M49: 975 | N49: 2.15 | O49: 2.25 | P49: 75 | Q49: -1 | R49: 2.15 | S49: 17.8 | T49: 3901 | U49: -27000 | V49: 273300 | W49: Graph
A50: Graph | B50: 590625 | C50: -20250 | D50: 969 | E50: 20.08 | F50: 413 | G50: 45.15 | H50: 75 | I50: 414.55 | J50: 421 | K50: 75 | L50: 10000 | M50: 75 | N50: 2.75 | O50: 2.85 | P50: 75 | Q50: -1.8 | R50: 2.75 | S50: 16.8 | T50: 66245 | U50: 364575 | V50: 5726025 | W50: Graph
A51: Graph | B51: 3375 | C51: - | D51: 6 | E51: 21.9 | F51: 370.95 | G51: 61.55 | H51: 600 | I51: 355 | J51: 376.1 | K51: 2100 | L51: 10050 | M51: 75 | N51: 3.15 | O51: 3.8 | P51: 75 | Q51: -2.5 | R51: 3.3 | S51: 15.56 | T51: 5381 | U51: 34575 | V51: 221325 | W51: Graph
A52: Graph | B52: 522900 | C52: -23475 | D52: 4178 | E52: 18.25 | F52: 317.7 | G52: 48.65 | H52: 150 | I52: 318 | J52: 323.1 | K52: 75 | L52: 10100 | M52: 2550 | N52: 4.25 | O52: 4.6 | P52: 300 | Q52: -3.9 | R52: 4.45 | S52: 14.59 | T52: 88804 | U52: -189075 | V52: 3073800 | W52: Graph
A53: Graph | B53: 40275 | C53: -5250 | D53: 244 | E53: 16.9 | F53: 270.1 | G53: 51.25 | H53: 75 | I53: 266.4 | J53: 270.95 | K53: 300 | L53: 10150 | M53: 75 | N53: 6.45 | O53: 6.6 | P53: 1725 | Q53: -5.3 | R53: 6.6 | S53: 13.86 | T53: 27350 | U53: -31575 | V53: 442275 | W53: Graph
A54: Graph | B54: 1042650 | C54: -180375 | D54: 15204 | E54: 15.83 | F54: 224.2 | G54: 43.25 | H54: 525 | I54: 224 | J54: 225.9 | K54: 75 | L54: 10200 | M54: 7050 | N54: 9.7 | O54: 9.9 | P54: 300 | Q54: -7.95 | R54: 9.7 | S54: 13.06 | T54: 180196 | U54: 426600 | V54: 5640375 | W54: Graph
A55: Graph | B55: 205800 | C55: -49500 | D55: 3107 | E55: 13.44 | F55: 175 | G55: 37.85 | H55: 2100 | I55: 169.6 | J55: 176.65 | K55: 75 | L55: 10250 | M55: 150 | N55: 14.1 | O55: 14.45 | P55: 675 | Q55: -10.45 | R55: 14.2 | S55: 12.2 | T55: 52930 | U55: -261225 | V55: 848700 | W55: Graph
A56: Graph | B56: 2133000 | C56: -855450 | D56: 117957 | E56: 12.59 | F56: 133 | G56: 32 | H56: 150 | I56: 133 | J56: 134 | K56: 1500 | L56: 10300 | M56: 300 | N56: 20.55 | O56: 20.95 | P56: 6675 | Q56: -16.1 | R56: 20.95 | S56: 11.3 | T56: 295863 | U56: 148725 | V56: 6174225 | W56: Graph
A57: Graph | B57: 698700 | C57: -601950 | D57: 37103 | E57: 11.51 | F57: 93.5 | G57: 25.15 | H57: 600 | I57: 93.25 | J57: 94 | K57: 75 | L57: 10350 | M57: 75 | N57: 29.05 | O57: 29.4 | P57: 450 | Q57: -23.2 | R57: 29.4 | S57: 10 | T57: 79054 | U57: 522900 | V57: 1866225 | W57: Graph
A58: Graph | B58: 4695750 | C58: -348150 | D58: 297466 | E58: 10.95 | F58: 61.6 | G58: 15.05 | H58: 375 | I58: 61.6 | J58: 61.85 | K58: 150 | L58: 10400 | M58: 75 | N58: 44.6 | O58: 45.55 | P58: 225 | Q58: -33.05 | R58: 44.6 | S58: 9.02 | T58: 218281 | U58: 1449450 | V58: 3360450 | W58: Graph
A59: Graph | B59: 1036425 | C59: -93150 | D59: 59357 | E59: 10.54 | F59: 37.2 | G59: 8.1 | H59: 75 | I59: 37.2 | J59: 37.8 | K59: 300 | L59: 10450 | M59: 150 | N59: 68.05 | O59: 70 | P59: 450 | Q59: -39.15 | R59: 68.9 | S59: 8.26 | T59: 11526 | U59: 174450 | V59: 329550 | W59: Graph
A60: Graph | B60: 5950725 | C60: -348150 | D60: 246865 | E60: 10.53 | F60: 21.5 | G60: 3.75 | H60: 525 | I60: 21.45 | J60: 21.5 | K60: 1500 | L60: 10500 | M60: 150 | N60: 99.05 | O60: 99.8 | P60: 75 | Q60: -45.95 | R60: 100 | S60: 6.7 | T60: 43389 | U60: 221475 | V60: 914925 | W60: Graph
A61: Graph | B61: 907650 | C61: 230025 | D61: 37309 | E61: 10.45 | F61: 11.25 | G61: 1.5 | H61: 300 | I61: 11.1 | J61: 11.25 | K61: 75 | L61: 10550 | M61: 75 | N61: 138.8 | O61: 148.75 | P61: 600 | Q61: -43.2 | R61: 142.8 | S61: - | T61: 358 | U61: 2850 | V61: 16950 | W61: Graph
A62: Graph | B62: 4280475 | C62: -264150 | D62: 117574 | E62: 10.51 | F62: 5.6 | G62: 0.25 | H62: 1425 | I62: 5.6 | J62: 5.65 | K62: 150 | L62: 10600 | M62: 75 | N62: 181.45 | O62: 182.95 | P62: 75 | Q62: -50.05 | R62: 181.5 | S62: - | T62: 3981 | U62: -6750 | V62: 364200 | W62: Graph
A63: Graph | B63: 348825 | C63: 6525 | D63: 7782 | E63: 10.63 | F63: 2.65 | G63: -0.15 | H63: 300 | I63: 2.6 | J63: 2.8 | K63: 600 | L63: 10650 | M63: 750 | N63: 216.1 | O63: 245.45 | P63: 4200 | Q63: - | R63: 417 | S63: - | T63: - | U63: - | V63: 600 | W63: Graph
A64: Graph | B64: 2405850 | C64: -163800 | D64: 48292 | E64: 11.46 | F64: 1.75 | G64: -0.2 | H64: 525 | I64: 1.65 | J64: 1.8 | K64: 6675 | L64: 10700 | M64: 300 | N64: 276.4 | O64: 278.65 | P64: 75 | Q64: -44.15 | R64: 278.9 | S64: - | T64: 836 | U64: -36375 | V64: 160200 | W64: Graph
A65: Graph | B65: 230250 | C65: 3975 | D65: 1823 | E65: 12.28 | F65: 1.2 | G65: - | H65: 75 | I65: 1.05 | J65: 1.2 | K65: 375 | L65: 10750 | M65: 750 | N65: 313.15 | O65: 344.35 | P65: 750 | Q65: - | R65: - | S65: - | T65: - | U65: - | V65: - | W65: Graph
A66: Graph | B66: 2070750 | C66: -53850 | D66: 15567 | E66: 12.76 | F66: 0.7 | G66: -0.2 | H66: 75 | I66: 0.7 | J66: 0.8 | K66: 75 | L66: 10800 | M66: 75 | N66: 371.05 | O66: 376.7 | P66: 75 | Q66: -41.25 | R66: 377.8 | S66: - | T66: 117 | U66: 1650 | V66: 38100 | W66: Graph
A67: Graph | B67: 50850 | C67: -2400 | D67: 80 | E67: 14.38 | F67: 0.8 | G67: -0.05 | H67: 1050 | I67: 0.5 | J67: 0.8 | K67: 75 | L67: 10850 | M67: 750 | N67: 413.15 | O67: 444.15 | P67: 750 | Q67: - | R67: - | S67: - | T67: - | U67: - | V67: - | W67: Graph
A68: Graph | B68: 826425 | C68: -508725 | D68: 13485 | E68: 14.47 | F68: 0.4 | G68: -0.4 | H68: 3000 | I68: 0.3 | J68: 0.4 | K68: 6825 | L68: 10900 | M68: 75 | N68: 469.4 | O68: 477.1 | P68: 75 | Q68: -103 | R68: 470 | S68: - | T68: 12 | U68: 450 | V68: 7575 | W68: Graph
A69: Graph | B69: 36375 | C69: -5700 | D69: 102 | E69: 15.49 | F69: 0.35 | G69: -0.3 | H69: 75 | I69: 0.25 | J69: 0.8 | K69: 7500 | L69: 10950 | M69: 750 | N69: 512.5 | O69: 543.95 | P69: 750 | Q69: - | R69: - | S69: - | T69: - | U69: - | V69: - | W69: Graph
A70: Graph | B70: 1317825 | C70: -41250 | D70: 7486 | E70: 16.72 | F70: 0.35 | G70: -0.35 | H70: 77625 | I70: 0.3 | J70: 0.35 | K70: 3525 | L70: 11000 | M70: 150 | N70: 571.1 | O70: 577.3 | P70: 150 | Q70: -44.8 | R70: 576.45 | S70: - | T70: 836 | U70: -18900 | V70: 823275 | W70: Graph
A71: Graph | B71: 1575 | C71: - | D71: 5 | E71: 19.72 | F71: 0.8 | G71: -1.2 | H71: 1125 | I71: 0.15 | J71: 0.8 | K71: 600 | L71: 11050 | M71: 1200 | N71: 407.95 | O71: - | P71: - | Q71: - | R71: - | S71: - | T71: - | U71: - | V71: - | W71: Graph
A72: Graph | B72: 336150 | C72: 750 | D72: 4801 | E72: 19.4 | F72: 0.4 | G72: -0.2 | H72: 7200 | I72: 0.3 | J72: 0.4 | K72: 3750 | L72: 11100 | M72: 150 | N72: 662.5 | O72: 680.85 | P72: 75 | Q72: -59.35 | R72: 667.7 | S72: - | T72: 2 | U72: - | V72: 7050 | W72: Graph
A73: Graph | B73: 75 | C73: -375 | D73: 10 | E73: 20.6 | F73: 0.4 | G73: -0.45 | H73: 45000 | I73: 0.05 | J73: 1 | K73: 225 | L73: 11150 | M73: 1200 | N73: 508.2 | O73: - | P73: - | Q73: - | R73: - | S73: - | T73: - | U73: - | V73: - | W73: Graph
A74: Graph | B74: 250950 | C74: -1200 | D74: 290 | E74: 21.48 | F74: 0.35 | G74: -0.4 | H74: 11250 | I74: 0.2 | J74: 0.35 | K74: 2775 | L74: 11200 | M74: 750 | N74: 759.4 | O74: 791.9 | P74: 2100 | Q74: -11.15 | R74: 829.05 | S74: 47.8 | T74: 2 | U74: -150 | V74: 3225 | W74: Graph
A75: Graph | B75: - | C75: - | D75: - | E75: - | F75: - | G75: - | H75: 7500 | I75: 0.05 | J75: 1.7 | K75: 600 | L75: 11250 | M75: 1200 | N75: 608.5 | O75: - | P75: - | Q75: - | R75: - | S75: - | T75: - | U75: - | V75: - | W75: Graph
A76: Graph | B76: 119775 | C76: -2175 | D76: 54 | E76: 24.42 | F76: 0.45 | G76: -0.4 | H76: 1350 | I76: 0.1 | J76: 0.5 | K76: 600 | L76: 11300 | M76: 750 | N76: 861.3 | O76: 891.9 | P76: 2100 | Q76: -80.85 | R76: 890 | S76: - | T76: 1 | U76: -75 | V76: 600 | W76: Graph
A77: Graph | B77: 5850 | C77: - | D77: 9 | E77: 26.13 | F77: 0.55 | G77: -0.45 | H77: 1500 | I77: 0.2 | J77: 0.9 | K77: 750 | L77: 11350 | M77: 1200 | N77: 708.75 | O77: - | P77: - | Q77: - | R77: - | S77: - | T77: - | U77: - | V77: - | W77: Graph
A78: Graph | B78: 157050 | C78: -1125 | D78: 137 | E78: 26.41 | F78: 0.4 | G78: -0.35 | H78: 7500 | I78: 0.05 | J78: 0.5 | K78: 300 | L78: 11400 | M78: 75 | N78: 959.7 | O78: 991.85 | P78: 75 | Q78: -74.1 | R78: 989.75 | S78: - | T78: 8 | U78: -375 | V78: 15375 | W78: Graph
A79: Graph | B79: 75 | C79: - | D79: - | E79: - | F79: 0.5 | G79: - | H79: 7500 | I79: 0.05 | J79: 1.65 | K79: 600 | L79: 11450 | M79: 1200 | N79: 809.05 | O79: - | P79: - | Q79: - | R79: - | S79: - | T79: - | U79: - | V79: - | W79: Graph
A80: Graph | B80: 566850 | C80: 1875 | D80: 2027 | E80: 28.28 | F80: 0.35 | G80: -0.25 | H80: 6075 | I80: 0.25 | J80: 0.4 | K80: 75 | L80: 11500 | M80: 225 | N80: 1070.95 | O80: 1075.75 | P80: 75 | Q80: -48.2 | R80: 1071 | S80: - | T80: 1404 | U80: -91650 | V80: 948900 | W80: Graph
A81: Graph | B81: 300 | C81: 75 | D81: 2 | E81: 31.8 | F81: 0.75 | G81: -0.25 | H81: 6000 | I81: 0.05 | J81: 1.5 | K81: 3000 | L81: 11550 | M81: 1200 | N81: 909.35 | O81: - | P81: - | Q81: - | R81: - | S81: - | T81: - | U81: - | V81: - | W81: Graph
A82: Graph | B82: 18450 | C82: -150 | D82: 10 | E82: 31.24 | F82: 0.45 | G82: 0.35 | H82: 13500 | I82: 0.1 | J82: 0.45 | K82: 375 | L82: 11600 | M82: 150 | N82: 1167.3 | O82: 1184.2 | P82: 75 | Q82: -72.3 | R82: 1196 | S82: 41.93 | T82: 4 | U82: -300 | V82: 12525 | W82: Graph
A83: Graph | B83: - | C83: - | D83: - | E83: - | F83: - | G83: - | H83: 6000 | I83: 0.05 | J83: 1.5 | K83: 3000 | L83: 11650 | M83: 1200 | N83: 1009.6 | O83: - | P83: - | Q83: - | R83: - | S83: - | T83: - | U83: - | V83: - | W83: Graph
A84: Graph | B84: 17400 | C84: 150 | D84: 7 | E84: 29.22 | F84: 0.1 | G84: - | H84: 5100 | I84: 0.1 | J84: 0.3 | K84: 1575 | L84: 11700 | M84: 150 | N84: 1268.15 | O84: 1283.75 | P84: 75 | Q84: -30.3 | R84: 1284.75 | S84: - | T84: 28 | U84: -1575 | V84: 16725 | W84: Graph
A85: Graph | B85: 2475 | C85: - | D85: - | E85: - | F85: 0.05 | G85: - | H85: 4050 | I85: 0.05 | J85: 0.4 | K85: 300 | L85: 11750 | M85: 150 | N85: 1318.65 | O85: 1328.9 | P85: 300 | Q85: -40.35 | R85: 1342.45 | S85: 39.23 | T85: 45 | U85: -2700 | V85: 26925 | W85: Graph
A86: Graph | B86: 31500 | C86: - | D86: - | E86: - | F86: 0.25 | G86: - | H86: 600 | I86: 0.25 | J86: 1.4 | K86: 525 | L86: 11800 | M86: 750 | N86: 1363.1 | O86: 1391.85 | P86: 75 | Q86: - | R86: 1406.35 | S86: - | T86: - | U86: - | V86: 1425 | W86: Graph
A87: Graph | B87: 1350 | C87: - | D87: 1 | E87: 30.46 | F87: 0.05 | G87: - | H87: - | I87: - | J87: 0.05 | K87: 75 | L87: 11850 | M87: 1200 | N87: 1210.15 | O87: 1765.25 | P87: 150 | Q87: - | R87: - | S87: - | T87: - | U87: - | V87: - | W87: Graph
A88: Graph | B88: 600 | C88: 300 | D88: 8 | E88: 39.46 | F88: 0.7 | G88: -0.3 | H88: 150 | I88: 0.1 | J88: 0.85 | K88: 1050 | L88: 11900 | M88: 150 | N88: 1458.15 | O88: 1477.85 | P88: 225 | Q88: - | R88: 1568.7 | S88: - | T88: - | U88: - | V88: 750 | W88: Graph
A89: Graph | B89: - | C89: - | D89: - | E89: - | F89: - | G89: - | H89: - | I89: - | J89: 1.5 | K89: 6000 | L89: 11950 | M89: 75 | N89: 1475 | O89: 1599 | P89: 75 | Q89: - | R89: - | S89: - | T89: - | U89: - | V89: - | W89: Graph
A90: Total | B90: 35811225 | D90: 1043665 | T90: 1183965 | V90: 43173000 | W90: Total
A92: Top
A93: Note : 10% interest rate is applied while computing implied volatility.
A94: highlighted Highlighted options are in-the-money.

Sheet Greeks
A1: N | B1: =F6*365 -> 3 | C1: Today = | D1: =TODAY() -> 2017-11-27 | M1: 2017-11-30 | N1: Current expiry date | W1: Holidays
F2: ITC | I2: =M1 -> 2017-11-30 | J2: Chosen expiry date | Q2: Lupin | T2: =M1 -> 2017-11-30 | U2: Chosen expiry date | W2: 2017-01-26
B3: Price of the underlying | F3: 260 | G3: Strike price nearest to CMP | K3: =ROUND(F3/K4,0)*K4 -> 260 | M3: Price of the underlying | Q3: 840 | R3: Strike price nearest to CMP | V3: =ROUND(Q3/V4,0)*V4 -> 840 | W3: 2017-03-13
B4: R : risk free absolute ROI | E4: 7.5 | F4: =ROUND(LN(1+E4/100), 5) -> 0.07232 | G4: Strike price interval | K4: =VLOOKUP(F2, fnoStepValue, 2, FALSE) -> 10 | M4: R : risk free absolute ROI | P4: =IF(TODAY() <= WORKDAY( EOMONTH(TODAY(),0)-MOD(WEEKDAY(EOMONTH(TODAY(),0))+2,7), 0, W2:W13), WORKDAY(EOMONTH(TODAY(),0)-MOD(WEEKDAY(EOMONTH(TODAY(),0))+2,7), 0, W2:W13), "ZZ") -> 2017-11-30 | Q4: =F4 -> 0.07232 | R4: Strike price interval | V4: =VLOOKUP(Q2, fnoStepValue, 2, FALSE) -> 20 | W4: 2017-04-04
B5: o : Annual absolute volatility | F5: 0.3 | G5: Dividend yield | K5: 0 | M5: o : Annual volatility | Q5: 0.3 | R5: Dividend yield | V5: 0.01 | W5: 2017-04-14
B6: T-t : time to expiration (yrs) | F6: =IF(A1="N", IF(DATE_EXPR-TODAY()>1, (DATE_EXPR-TODAY())/365, 1/365), (DATE_NEXT-DATE_TO)/365) -> 0.008219178082 | M6: T-t : time to expiration (yrs) | Q6: =F6 -> 0.008219178082 | W6: 2017-05-01
B7: Type | C7: d1 | D7: d2 | E7: Strike | F7: Premium | G7: Delta | H7: Theta | I7: Gamma | J7: Vega | K7: Rho | M7: Type | N7: d1 | O7: d2 | P7: Strike | Q7: Premium | R7: Delta | S7: Theta | T7: Gamma | U7: Vega | V7: Rho | W7: 2017-06-26
B8: Call:TV | C8: =(LN($F$3/E8)+(($F$4-$K$5+(POWER($F$5,2)/2))*$F$6))/($F$5*SQRT($F$6)) -> 7.888047832 | D8: =(LN($F$3/E8)+(($F$4-$K$5-(POWER($F$5,2)/2))*$F$6))/($F$5*SQRT($F$6)) -> 7.860849927 | E8: =E9-K4 -> 210 | F8: =ROUND(($F$3*EXP(-1*$K$5*$F$6)*NORMSDIST(C8))-(E8*EXP(-1*$F$4*$F$6)*NORMSDIST(D8)), 2) -> 50.12 | G8: =ROUND(EXP(-1*$K$5*$F$6)*NORMSDIST(C8), 5) -> 1 | H8: =ROUND(((-1*(($F$3*((1/SQRT(2*PI()))*EXP(-1*POWER(C8,2)/2))*$F$5*EXP(-1*$F$6*$K$5))/(2*SQRT($F$6)))+($K$5*$F$3*G8)-($F$4*E8*EXP(-1*$F$4*$F$6)*NORMSDIST(D8))))/365, 6) -> -0.041584 | I8: =ROUND(((((1/SQRT(2*PI()))*EXP(-1*POWER(C8,2)/2))*EXP(-1*$F$6*$K$5))/($F$3*$F$5*SQRT($F$6))), 6) -> 0 | J8: =ROUND((((1/SQRT(2*PI()))*EXP(-1*C8*C8/2))*EXP(-1*$F$6*$K$5)*$F$3*SQRT($F$6))/100, 6) -> 0 | K8: =ROUND((E8*$F$6*EXP(-1*$F$4*$F$6)*NORMSDIST(D8)*EXP(-1*$K$5*$F$6))/100, 6) -> 0.01725 | M8: Call: TV | N8: =(LN($Q$3/P8)+(($Q$4-$V$5+(POWER($Q$5,2)/2))*$Q$6))/($Q$5*SQRT($Q$6)) -> 4.692780146 | O8: =(LN($Q$3/P8)+(($Q$4-$V$5-(POWER($Q$5,2)/2))*$Q$6))/($Q$5*SQRT($Q$6)) -> 4.665582242 | P8: =P9-$V$4 -> 740 | Q8: =($Q$3*EXP(-1*$V$5*$Q$6)*NORMSDIST(N8))-(P8*EXP(-1*$Q$4*$Q$6)*NORMSDIST(O8)) -> 100.3707012 | R8: =EXP(-1*$V$5*$Q$6)*NORMSDIST(N8) -> 0.9999164641 | S8: =((-1*(($Q$3*((1/SQRT(2*PI()))*EXP(-1*POWER(N8,2)/2))*$Q$5*EXP(-1*$Q$6*$V$5))/(2*SQRT($Q$6)))+($V$5*$Q$3*R8)-($Q$4*P8*EXP(-1*$Q$4*$Q$6)*NORMSDIST(O8))))/365 -> -0.1235473296 | T8: =((((1/SQRT(2*PI()))*EXP(-1*POWER(N8,2)/2))*EXP(-1*$Q$6*$V$5))/($Q$3*$Q$5*SQRT($Q$6))) -> 2.884050183e-07 | U8: =(((1/SQRT(2*PI()))*EXP(-1*POWER(N8,2)/2))*EXP(-1*$Q$6*$V$5)*$Q$3*SQRT($Q$6))/100 -> 5.017773229e-06 | V8: =(P8*$Q$6*EXP(-1*$Q$4*$Q$6)*NORMSDIST(O8)*EXP(-1*$V$5*$Q$6))/100 -> 0.06078068593 | W8: 2017-08-15
B9: =IF(E9<$F$3, F9-($F$3-E9), F9) -> 0.13 | C9: 6.177621389 | D9: 6.150423484 | E9: =E10-K4 -> 220 | F9: =ROUND(($F$3*EXP(-1*$K$5*$F$6)*NORMSDIST(C9))-(E9*EXP(-1*$F$4*$F$6)*NORMSDIST(D9)), 2) -> 40.13 | G9: =ROUND(EXP(-1*$K$5*$F$6)*NORMSDIST(C9), 5) -> 1 | H9: =ROUND(((-1*(($F$3*((1/SQRT(2*PI()))*EXP(-1*POWER(C9,2)/2))*$F$5*EXP(-1*$F$6*$K$5))/(2*SQRT($F$6)))+($K$5*$F$3*G9)-($F$4*E9*EXP(-1*$F$4*$F$6)*NORMSDIST(D9))))/365, 6) -> -0.043564 | I9: =ROUND(((((1/SQRT(2*PI()))*EXP(-1*POWER(C9,2)/2))*EXP(-1*$F$6*$K$5))/($F$3*$F$5*SQRT($F$6))), 6) -> 0 | J9: =ROUND((((1/SQRT(2*PI()))*EXP(-1*POWER(C9,2)/2))*EXP(-1*$F$6*$K$5)*$F$3*SQRT($F$6))/100, 6) -> 0 | K9: =ROUND((E9*$F$6*EXP(-1*$F$4*$F$6)*NORMSDIST(D9)*EXP(-1*$K$5*$F$6))/100, 6) -> 0.018071 | M9: =IF(P9<$Q$3, Q9-($Q$3-P9), Q9) -> 0.3831460506 | N9: 3.712254358 | O9: =(LN($Q$3/P9)+(($Q$4-$V$5-(POWER($Q$5,2)/2))*$Q$6))/($Q$5*SQRT($Q$6)) -> 3.685056453 | P9: =P10-$V$4 -> 760 | Q9: 80.38314605 | R9: 0.9998151093 | S9: -0.1290134751 | T9: 1.776600978e-05 | U9: 0.0003090993658 | V9: 0.06241636659 | W9: 2017-08-25
B10: =IF(E10<$F$3, F10-($F$3-E10), F10) -> 0.14 | C10: 4.543239518 | D10: 4.516041614 | E10: =E11-K4 -> 230 | F10: =ROUND(($F$3*EXP(-1*$K$5*$F$6)*NORMSDIST(C10))-(E10*EXP(-1*$F$4*$F$6)*NORMSDIST(D10)), 2) -> 30.14 | G10: =ROUND(EXP(-1*$K$5*$F$6)*NORMSDIST(C10), 5) -> 1 | H10: =ROUND(((-1*(($F$3*((1/SQRT(2*PI()))*EXP(-1*POWER(C10,2)/2))*$F$5*EXP(-1*$F$6*$K$5))/(2*SQRT($F$6)))+($K$5*$F$3*G10)-($F$4*E10*EXP(-1*$F$4*$F$6)*NORMSDIST(D10))))/365, 6) -> -0.04556 | I10: =ROUND(((((1/SQRT(2*PI()))*EXP(-1*POWER(C10,2)/2))*EXP(-1*$F$6*$K$5))/($F$3*$F$5*SQRT($F$6))), 6) -> 2e-06 | J10: =ROUND((((1/SQRT(2*PI()))*EXP(-1*POWER(C10,2)/2))*EXP(-1*$F$6*$K$5)*$F$3*SQRT($F$6))/100, 6) -> 3e-06 | K10: =ROUND((E10*$F$6*EXP(-1*$F$4*$F$6)*NORMSDIST(D10)*EXP(-1*$K$5*$F$6))/100, 6) -> 0.018893 | M10: =IF(P10<$Q$3, Q10-($Q$3-P10), Q10) -> 0.4146763652 | N10: 2.757199674 | O10: 2.730001769 | P10: =P11-$V$4 -> 780 | Q10: 60.41467637 | R10: 0.9970031142 | S10: -0.1649643053 | T10: 0.000390187837 | U10: 0.00678862696 | V10: 0.06386334851 | W10: 2017-10-02
B11: 0.15 | C11: 2.978427277 | D11: 2.951229373 | E11: =E12-K4 -> 240 | F11: =ROUND(($F$3*EXP(-1*$K$5*$F$6)*NORMSDIST(C11))-(E11*EXP(-1*$F$4*$F$6)*NORMSDIST(D11)), 2) -> 20.15 | G11: =ROUND(EXP(-1*$K$5*$F$6)*NORMSDIST(C11), 5) -> 0.99855 | H11: =ROUND(((-1*(($F$3*((1/SQRT(2*PI()))*EXP(-1*POWER(C11,2)/2))*$F$5*EXP(-1*$F$6*$K$5))/(2*SQRT($F$6)))+($K$5*$F$3*G11)-($F$4*E11*EXP(-1*$F$4*$F$6)*NORMSDIST(D11))))/365, 6) -> -0.053021 | I11: =ROUND(((((1/SQRT(2*PI()))*EXP(-1*POWER(C11,2)/2))*EXP(-1*$F$6*$K$5))/($F$3*$F$5*SQRT($F$6))), 6) -> 0.000668 | J11: =ROUND((((1/SQRT(2*PI()))*EXP(-1*POWER(C11,2)/2))*EXP(-1*$F$6*$K$5)*$F$3*SQRT($F$6))/100, 6) -> 0.001114 | K11: =ROUND((E11*$F$6*EXP(-1*$F$4*$F$6)*NORMSDIST(D11)*EXP(-1*$K$5*$F$6))/100, 6) -> 0.019683 | M11: 0.7144523469 | N11: 1.826326206 | O11: 1.799128302 | P11: =P12-V4 -> 800 | Q11: 40.71445235 | R11: 0.9660200278 | S11: -0.4170638012 | T11: 0.003294367832 | U11: 0.05731658487 | V11: 0.0633434815 | W11: 2017-10-19
B12: 0.37 | C12: 1.477503042 | D12: 1.450305137 | E12: =E13-K4 -> 250 | F12: 10.37 | G12: 0.93023 | H12: -0.203712 | I12: 0.018939 | J12: 0.031569 | K12: 0.019027 | M12: 2.664299045 | N12: 0.9184396343 | O12: =(LN($Q$3/P12)+(($Q$4-$V$5-(POWER($Q$5,2)/2))*$Q$6))/($Q$5*SQRT($Q$6)) -> 0.8912417295 | P12: =P13-V4 -> 820 | Q12: 22.66429905 | R12: 0.8207381649 | S12: -1.109468493 | T12: 0.01145220534 | U12: 0.1992495475 | V12: 0.05479733917 | W12: 2017-10-20
B13: 2.9 | C13: 0.03545397995 | D13: 0.008256075112 | E13: =K3 -> 260 | F13: 2.9 | G13: 0.51414 | H13: -0.4958 | I13: 0.05638 | J13: 0.093978 | K13: 0.010749 | M13: 9.327642617 | N13: 0.03243199052 | O13: 0.005234085686 | P13: =V3 -> 840 | Q13: 9.327642617 | R13: 0.512894067 | S13: -1.589843533 | T13: 0.01745143852 | U13: 0.303626343 | V13: 0.03464126556 | W13: 2017-12-25
B14: 0.28 | C14: -1.352164964 | D14: -1.379362869 | E14: =E13+K4 -> 270 | F14: 0.28 | G14: 0.08816 | H14: -0.192957 | I14: 0.022614 | J14: 0.037694 | K14: 0.001861 | M14: 2.558000421 | N14: -0.8327264676 | O14: -0.8599243724 | P14: =P13+V4 -> 860 | Q14: 2.558000421 | R14: 0.2024828638 | S14: -1.102425797 | T14: 0.01234475546 | U14: 0.2147784523 | V14: 0.01376826052
B15: 0.01 | C15: -2.689313704 | D15: -2.716511608 | E15: =E14+K4 -> 280 | F15: 0.01 | G15: 0.00358 | H15: -0.012824 | I15: 0.001517 | J15: 0.002528 | K15: 7.6e-05 | M15: 0.4363001778 | N15: -1.677994453 | O15: -1.705192358 | P15: =P14+V4 -> 880 | Q15: 0.4363001778 | R15: 0.04667025489 | S15: -0.3782482926 | T15: 0.004272141855 | U15: 0.07432824559 | V15: 0.003186043377
B16: 0 | C16: -3.979535139 | D16: -4.006733044 | E16: =E15+$K$4 -> 290 | F16: 0 | G16: 3e-05 | H16: -0.000173 | I16: 2.1e-05 | J16: 3.4e-05 | K16: 1e-06 | M16: 0.04481718258 | N16: -2.504266035 | O16: =(LN($Q$3/P16)+(($Q$4-$V$5-(POWER($Q$5,2)/2))*$Q$6))/($Q$5*SQRT($Q$6)) -> -2.53146394 | P16: =P15+$V$4 -> 900 | Q16: 0.04481718258 | R16: 0.006134782296 | S16: -0.06689954406 | T16: 0.0007590207316 | U16: 0.01320571302 | V16: 0.0004198339804
B17: 0 | C17: -5.226011729 | D17: -5.253209634 | E17: =E16+$K$4 -> 300 | F17: 0 | G17: 0 | H17: -1e-06 | I17: 0 | J17: 0 | K17: 0 | M17: 0.002755049516 | N17: -3.312376323 | O17: -3.339574228 | P17: =P16+$V$4 -> 920 | Q17: 0.002755049516 | R17: 0.0004624970738 | S17: -0.006361337044 | T17: 7.236949167e-05 | U17: 0.001259110192 | V17: 3.170225662e-05
B18: 0 | C18: -6.431612786 | D18: -6.458810691 | E18: =E17+$K$4 -> 310 | F18: 0 | G18: 0 | H18: 0 | I18: 0 | J18: 0 | K18: 0 | M18: 0.000102258545 | N18: -4.103106541 | O18: -4.130304446 | P18: =P17+$V$4 -> 940 | Q18: 0.000102258545 | R18: 2.038029563e-05 | S18: -0.0003384541509 | T18: 3.857277538e-06 | U18: 6.711028843e-05 | V18: 1.398558179e-06
B19: Put: TV | C19: =ROUND(NORMSDIST(C8),4) -> 1 | D19: =ROUND(NORMSDIST(D8), 4) -> 1 | E19: =E8 -> 210 | F19: =(E8*EXP(-1*$F$4*$F$6)*NORMSDIST(-1*D8))-($F$3*EXP(-1*$K$5*$F$6)*NORMSDIST(-1*C8)) -> 1.339246606e-15 | G19: =ROUND(EXP(-1*$K$5*$F$6)*((NORMSDIST(C8))-1), 6) -> 0 | H19: =ROUND(((-1*(($F$3*((1/SQRT(2*PI()))*EXP(-1*POWER(C8,2)/2))*$F$5*EXP(-1*$F$6*$K$5)))/(2*SQRT($F$6))-($K$5*$F$3*NORMSDIST(-1*C8)*EXP(-1*$F$6*$K$5))+($F$4*E8*EXP(-1*$F$4*$F$6)*NORMSDIST(-1*D8))))/365, 6) -> 0 | I19: =I8 -> 0 | J19: 0 | K19: =(-1*E8*$F$6*EXP(-1*$F$4*$F$6)*NORMSDIST(-1*D8)*EXP(-1*$K$5*$F$6))/100 -> -3.29074855e-17 | M19: Put: TV | N19: =ROUND(NORMSDIST(N8),4) -> 1 | O19: =ROUND(NORMSDIST(O8), 4) -> 1 | P19: =P8 -> 740 | Q19: =(P8*EXP(-1*$Q$4*$Q$6)*NORMSDIST(-1*O8))-($Q$3*EXP(-1*$V$5*$Q$6)*NORMSDIST(-1*N8)) -> 6.098789405e-06 | R19: =EXP(-1*$V$5*$Q$6)*((NORMSDIST(N8))-1) -> -1.347474762e-06 | S19: =((-1*(($Q$3*((1/SQRT(2*PI()))*EXP(-1*POWER(N8,2)/2))*$Q$5*EXP(-1*$Q$6*$V$5)))/(2*SQRT($Q$6))-($V$5*$Q$3*NORMSDIST(-1*N8)*EXP(-1*$Q$6*$V$5))+($Q$4*P8*EXP(-1*$Q$4*$Q$6)*NORMSDIST(-1*O8))))/365 -> -2.489440107e-05 | T19: =T8 -> 2.884050183e-07 | U19: 5.017773229e-06 | V19: =(-1*P8*$Q$6*EXP(-1*$Q$4*$Q$6)*NORMSDIST(-1*O8)*EXP(-1*$V$5*$Q$6))/100 -> -9.352471732e-08
B20: =IF(E20<$F$3, F20, F20-(E20-$F$3)) -> 3.565534462e-10 | C20: =ROUND(NORMSDIST(C9),4) -> 1 | D20: =ROUND(NORMSDIST(D9), 4) -> 1 | E20: 220 | F20: =(E9*EXP(-1*$F$4*$F$6)*NORMSDIST(-1*D9))-($F$3*EXP(-1*$K$5*$F$6)*NORMSDIST(-1*C9)) -> 3.565534462e-10 | G20: =ROUND(EXP(-1*$K$5*$F$6)*((NORMSDIST(C9))-1), 6) -> 0 | H20: =ROUND(((-1*(($F$3*((1/SQRT(2*PI()))*EXP(-1*POWER(C9,2)/2))*$F$5*EXP(-1*$F$6*$K$5)))/(2*SQRT($F$6))-($K$5*$F$3*NORMSDIST(-1*C9)*EXP(-1*$F$6*$K$5))+($F$4*E9*EXP(-1*$F$4*$F$6)*NORMSDIST(-1*D9))))/365, 6) -> 0 | I20: 0 | J20: 0 | K20: =(-1*E9*$F$6*EXP(-1*$F$4*$F$6)*NORMSDIST(-1*D9)*EXP(-1*$K$5*$F$6))/100 -> -6.982475656e-12 | M20: =IF(P20<$Q$3, Q20, Q20-(P20-$Q$3)) -> 0.0005662171951 | N20: =ROUND(NORMSDIST(N9),4) -> 0.9999 | O20: =ROUND(NORMSDIST(O9), 4) -> 0.9999 | P20: 760 | Q20: =(P9*EXP(-1*$Q$4*$Q$6)*NORMSDIST(-1*O9))-($Q$3*EXP(-1*$V$5*$Q$6)*NORMSDIST(-1*N9)) -> 0.0005662171951 | R20: =EXP(-1*$V$5*$Q$6)*((NORMSDIST(N9))-1) -> -0.0001027022543 | S20: =((-1*(($Q$3*((1/SQRT(2*PI()))*EXP(-1*POWER(N9,2)/2))*$Q$5*EXP(-1*$Q$6*$V$5)))/(2*SQRT($Q$6))-($V$5*$Q$3*NORMSDIST(-1*N9)*EXP(-1*$Q$6*$V$5))+($Q$4*P9*EXP(-1*$Q$4*$Q$6)*NORMSDIST(-1*O9))))/365 -> -0.001530654943 | T20: 1.776600978e-05 | U20: 0.0003090993658 | V20: =(-1*P9*$Q$6*EXP(-1*$Q$4*$Q$6)*NORMSDIST(-1*O9)*EXP(-1*$V$5*$Q$6))/100 -> -7.136627993e-06
B21: =IF(E21<$F$3, F21, F21-(E21-$F$3)) -> 3.990530587e-06 | C21: 1 | D21: 1 | E21: 230 | F21: =(E10*EXP(-1*$F$4*$F$6)*NORMSDIST(-1*D10))-($F$3*EXP(-1*$K$5*$F$6)*NORMSDIST(-1*C10)) -> 3.990530587e-06 | G21: =ROUND(EXP(-1*$K$5*$F$6)*((NORMSDIST(C10))-1), 6) -> -3e-06 | H21: =ROUND(((-1*(($F$3*((1/SQRT(2*PI()))*EXP(-1*POWER(C10,2)/2))*$F$5*EXP(-1*$F$6*$K$5)))/(2*SQRT($F$6))-($K$5*$F$3*NORMSDIST(-1*C10)*EXP(-1*$F$6*$K$5))+($F$4*E10*EXP(-1*$F$4*$F$6)*NORMSDIST(-1*D10))))/365, 6) -> -1.5e-05 | I21: 2e-06 | J21: 3e-06 | K21: =(-1*E10*$F$6*EXP(-1*$F$4*$F$6)*NORMSDIST(-1*D10)*EXP(-1*$K$5*$F$6))/100 -> -5.951849974e-08 | M21: =IF(P21<$Q$3, Q21, Q21-(P21-$Q$3)) -> 0.02021184518 | N21: 0.9971 | O21: 0.9968 | P21: 780 | Q21: =(P10*EXP(-1*$Q$4*$Q$6)*NORMSDIST(-1*O10))-($Q$3*EXP(-1*$V$5*$Q$6)*NORMSDIST(-1*N10)) -> 0.02021184518 | R21: =EXP(-1*$V$5*$Q$6)*((NORMSDIST(N10))-1) -> -0.002914697406 | S21: =((-1*(($Q$3*((1/SQRT(2*PI()))*EXP(-1*POWER(N10,2)/2))*$Q$5*EXP(-1*$Q$6*$V$5)))/(2*SQRT($Q$6))-($V$5*$Q$3*NORMSDIST(-1*N10)*EXP(-1*$Q$6*$V$5))+($Q$4*P10*EXP(-1*$Q$4*$Q$6)*NORMSDIST(-1*O10))))/365 -> -0.03352110019 | T21: 0.000390187837 | U21: 0.00678862696 | V21: =(-1*P10*$Q$6*EXP(-1*$Q$4*$Q$6)*NORMSDIST(-1*O10)*EXP(-1*$V$5*$Q$6))/100 -> -0.000202878475
B22: 0.002937124725 | C22: 0.9986 | D22: 0.9984 | E22: 240 | F22: =(E11*EXP(-1*$F$4*$F$6)*NORMSDIST(-1*D11))-($F$3*EXP(-1*$K$5*$F$6)*NORMSDIST(-1*C11)) -> 0.002937124725 | G22: =ROUND(EXP(-1*$K$5*$F$6)*((NORMSDIST(C11))-1), 6) -> -0.001449 | H22: =ROUND(((-1*(($F$3*((1/SQRT(2*PI()))*EXP(-1*POWER(C11,2)/2))*$F$5*EXP(-1*$F$6*$K$5)))/(2*SQRT($F$6))-($K$5*$F$3*NORMSDIST(-1*C11)*EXP(-1*$F$6*$K$5))+($F$4*E11*EXP(-1*$F$4*$F$6)*NORMSDIST(-1*D11))))/365, 6) -> -0.005496 | I22: =I11 -> 0.000668 | J22: 0.001114 | K22: =(-1*E11*$F$6*EXP(-1*$F$4*$F$6)*NORMSDIST(-1*D11)*EXP(-1*$K$5*$F$6))/100 -> -3.119904922e-05 | M22: 0.3081031402 | N22: 0.9661 | O22: 0.964 | P22: 800 | Q22: =(P11*EXP(-1*$Q$4*$Q$6)*NORMSDIST(-1*O11))-($Q$3*EXP(-1*$V$5*$Q$6)*NORMSDIST(-1*N11)) -> 0.3081031402 | R22: =EXP(-1*$V$5*$Q$6)*((NORMSDIST(N11))-1) -> -0.03389778378 | S22: =((-1*(($Q$3*((1/SQRT(2*PI()))*EXP(-1*POWER(N11,2)/2))*$Q$5*EXP(-1*$Q$6*$V$5)))/(2*SQRT($Q$6))-($V$5*$Q$3*NORMSDIST(-1*N11)*EXP(-1*$Q$6*$V$5))+($Q$4*P11*EXP(-1*$Q$4*$Q$6)*NORMSDIST(-1*O11))))/365 -> -0.2816602111 | T22: 0.003294367832 | U22: 0.05731658487 | V22: =(-1*P11*$Q$6*EXP(-1*$Q$4*$Q$6)*NORMSDIST(-1*O11)*EXP(-1*$V$5*$Q$6))/100 -> -0.002365469256
B23: 0.2204541594 | C23: 0.9302 | D23: 0.9265 | E23: 250 | F23: 0.2204541594 | G23: -0.06977 | H23: -0.154207 | I23: 0.018939 | J23: 0.031569 | K23: -0.001509103875 | M23: 2.246065152 | N23: 0.8208 | O23: 0.8136 | P23: 820 | Q23: 2.246065152 | R23: -0.1791796467 | S23: -0.9701045183 | T23: 0.01145220534 | U23: 0.1992495475 | V23: -0.01255433536
B24: 2.743600351 | C24: 0.5141 | D24: 0.5033 | E24: 260 | F24: 2.743600351 | G24: -0.485859 | H24: -0.444315 | I24: 0.05638 | J24: 0.093978 | K24: -0.01060823892 | M24: 8.897524037 | N24: 0.5129 | O24: 0.5021 | P24: 840 | Q24: 8.897524037 | R24: -0.4870237446 | S24: -1.446519174 | T24: 0.01745143852 | U24: 0.303626343 | V24: -0.03435313273
B25: 0.1242562052 | C25: 0.0882 | D25: 0.0839 | E25: 270 | F25: 10.12425621 | G25: -0.911839 | H25: -0.139492 | I25: 0.022614 | J25: 0.037694 | K25: -0.0203179993 | M25: 2.115997154 | N25: 0.2025 | O25: 0.1949 | P25: 860 | Q25: 22.11599715 | R25: -0.7974349478 | S25: -0.9551410519 | T25: 0.01234475546 | U25: 0.2147784523 | V25: -0.05686886154
B26: -0.1586828121 | C26: 0.0036 | D26: 0.0033 | E26: 280 | F26: 19.84131719 | G26: -0.99642 | H26: 0.042622 | I26: 0.001517 | J26: 0.002528 | K26: -0.02292415306 | M26: -0.01758777542 | N26: 0.0467 | O26: 0.0441 | P26: 880 | Q26: 39.98241222 | R26: -0.9532475567 | S26: -0.2270031629 | T26: 0.004272141855 | U26: 0.07432824559 | V26: -0.06909380246
B27: -0.1722729665 | C27: 0 | D27: 0 | E27: 290 | F27: 29.82772703 | G27: -0.999965 | H27: 0.057253 | I27: 2.1e-05 | J27: 3.4e-05 | K27: -0.02382071922 | M27: -0.4209554573 | N27: 0.0061 | O27: 0.0057 | P27: 900 | Q27: 59.57904454 | R27: -0.9937830293 | S27: 0.08830597062 | T27: 0.0007590207316 | U27: 0.01320571302 | V27: -0.07350273562
B28: -0.1782701902 | C28: 0 | D28: 0 | E28: 300 | F28: 39.82172981 | G28: -1 | H28: 0.059405 | I28: 0 | J28: 0 | K28: -0.02464288005 | M28: -0.474902277 | N28: 0.0005 | O28: 0.0004 | P28: 920 | Q28: 79.52509772 | R28: -0.9994553145 | S28: 0.1528045626 | T28: 7.236949167e-05 | U28: 0.001259110192 | V28: -0.07553359111
B29: -0.1842126428 | C29: 0 | D29: 0 | E29: 310 | F29: 49.81578736 | G29: -1 | H29: 0.061386 | I29: 0 | J29: 0 | K29: -0.02546431129 | M29: =IF(P29<$Q$3, Q29, Q29-(P29-$Q$3)) -> -0.4894397546 | N29: 0 | O29: 0 | P29: 940 | Q29: 99.51056025 | R29: -0.9998974313 | S29: 0.1627878304 | T29: 3.857277538e-06 | U29: 6.711028843e-05 | V29: -0.07720661858
C30: N(d1) ­ | D30: N(d2) ­ Probability that the stock price will be ATM or ITM by the expiry date
C31: N(d1): conditional probability that if the option expires ITM, how far ITM the stock price will be.
F32: Reliance | I32: =I2 -> 2017-11-30 | J32: Chosen expiry date | Q32: NIFTY50 | T32: =T2 -> 2017-11-30 | U32: Chosen expiry date
B33: Price of the underlying | F33: 950 | G33: Strike price nearest to CMP | K33: =ROUND(F33/K34,0)*K34 -> 960 | M33: Price of the underlying | Q33: 10400 | R33: Strike price nearest to CMP | V33: =ROUND(Q33/V34,0)*V34 -> 10400
B34: R : risk free absolute ROI | F34: =F4 -> 0.07232 | G34: Strike price interval | K34: =VLOOKUP(F32, fnoStepValue, 2, FALSE) -> 20 | M34: R : risk free absolute ROI | Q34: =F4 -> 0.07232 | R34: Strike price interval | V34: 50
B35: o : Annual absolute volatility | F35: 0.3 | G35: Dividend yield | K35: 0.015 | M35: o : Annual absolute volatility | Q35: 0.25 | R35: Dividend yield | V35: 0
B36: T-t : time to expiration (yrs) | F36: =F6 -> 0.008219178082 | M36: T-t : time to expiration (yrs) | Q36: =F36 -> 0.008219178082
B37: Type | C37: d1 : N(d1) | D37: d2 : N(d2) | E37: Strike | F37: Premium | G37: Delta | H37: Theta | I37: Gamma | J37: Vega | K37: Rho | M37: Type | N37: d1 : N(d1) | O37: d2 : N(d2) | P37: Strike | Q37: Premium | R37: Delta | S37: Theta | T37: Gamma | U37: Vega | V37: Rho
B38: Call:TV | C38: =(LN($F$33/E38)+(($F$34-$K$35+(POWER($F$35,2)/2))*$F$36))/($F$35*SQRT($F$36)) -> 3.690379177 | D38: =(LN($F$33/E38)+(($F$34-$K$35-(POWER($F$35,2)/2))*$F$36))/($F$35*SQRT($F$36)) -> 3.663181272 | E38: =E39-$K$34 -> 860 | F38: =($F$33*EXP(-1*$K$35*$F$36)*NORMSDIST(C38))-(E38*EXP(-1*$F$34*$F$36)*NORMSDIST(D38)) -> 90.39462682 | G38: =EXP(-1*$K$35*$F$36)*NORMSDIST(C38) -> 0.9997647737 | H38: =((-1*(($F$33*((1/SQRT(2*PI()))*EXP(-1*POWER(C38,2)/2))*$F$35*EXP(-1*$F$36*$K$35))/(2*SQRT($F$36)))+($K$35*$F$33*G38)-($F$34*E38*EXP(-1*$F$34*$F$36)*NORMSDIST(D38))))/365 -> -0.1331386423 | I38: =((((1/SQRT(2*PI()))*EXP(-1*POWER(C38,2)/2))*EXP(-1*$F$36*$K$35))/($F$33*$F$35*SQRT($F$36))) -> 1.70330037e-05 | J38: =(((1/SQRT(2*PI()))*EXP(-1*POWER(C38,2)/2))*EXP(-1*$F$36*$K$35)*$F$33*SQRT($F$36))/100 -> 0.0003790426644 | K38: =(E38*$F$36*EXP(-1*$F$34*$F$36)*NORMSDIST(D38)*EXP(-1*$K$35*$F$36))/100 -> 0.07062542166 | M38: Call: TV | N38: =(LN($Q$33/P38)+(($Q$34-$V$35+(POWER($Q$35,2)/2))*$Q$36))/($Q$35*SQRT($Q$36)) -> 1.111116217 | O38: =(LN($Q$33/P38)+(($Q$34-$V$35-(POWER($Q$35,2)/2))*$Q$36))/($Q$35*SQRT($Q$36)) -> 1.088451296 | P38: =P39-$V$34 -> 10150 | Q38: =($Q$33*EXP(-1*$V$35*$Q$36)*NORMSDIST(N38))-(P38*EXP(-1*$Q$34*$Q$36)*NORMSDIST(O38)) -> 272.0119591 | R38: =EXP(-1*$V$35*$Q$36)*NORMSDIST(N38) -> 0.8667408358 | S38: =((-1*(($Q$33*((1/SQRT(2*PI()))*EXP(-1*POWER(N38,2)/2))*$Q$35*EXP(-1*$Q$36*$V$35))/(2*SQRT($Q$36)))+($V$35*$Q$33*R38)-($Q$34*P38*EXP(-1*$Q$34*$Q$36)*NORMSDIST(O38))))/365 -> -10.18610539 | T38: =((((1/SQRT(2*PI()))*EXP(-1*POWER(N38,2)/2))*EXP(-1*$Q$36*$V$35))/($Q$33*$Q$35*SQRT($Q$36))) -> 0.0009129290893 | U38: =(((1/SQRT(2*PI()))*EXP(-1*POWER(N38,2)/2))*EXP(-1*$Q$36*$V$35)*$Q$33*SQRT($Q$36))/100 -> 2.028953636 | V38: =(P38*$Q$36*EXP(-1*$Q$34*$Q$36)*NORMSDIST(O38)*EXP(-1*$V$35*$Q$36))/100 -> 0.7185281698
B39: =IF(E39<$F$33, F39-($F$33-E39), F39) -> 0.4228219015 | C39: 2.845111191 | D39: 2.817913286 | E39: =E40-$K$34 -> 880 | F39: 70.4228219 | G39: 0.9976571975 | H39: -0.1648937882 | I39: 0.000269690025 | J39: 0.006001526653 | K39: 0.07210219362 | M39: =IF(P39<$Q$33, Q39-($Q$33-P39), Q39) -> 30.23814231 | N39: 0.8943047454 | O39: 0.8716398247 | P39: =P40-$V$34 -> 10200 | Q39: 230.2381423 | R39: 0.8144205692 | S39: -12.13953336 | T39: 0.001134624847 | U39: 2.521664867 | V39: 0.677238557
B40: =IF(E40<$F$33, F40-($F$33-E40), F40) -> 0.6281557572 | C40: 2.018839609 | D40: 1.991641705 | E40: =E41-$K$34 -> 900 | F40: 50.62815576 | G40: 0.9781274552 | H40: -0.359732895 | I40: 0.002011720098 | J40: 0.04476766163 | K40: 0.07220421482 | M40: =IF(P40<$Q$33, Q40-($Q$33-P40), Q40) -> 41.40977528 | N40: 0.6785534811 | O40: 0.6558885604 | P40: =P41-$V$34 -> 10250 | Q40: 191.4097753 | R40: 0.7512895868 | S40: -13.960053 | T40: 0.001344436735 | U40: 2.987964601 | V40: 0.6264659118
B41: 1.86389588 | C41: 1.210729321 | D41: 1.183531416 | E41: =E42-K34 -> 920 | F41: 31.86389588 | G41: 0.88689107 | H41: -0.9513843185 | I41: 0.007418034026 | J41: 0.1650766613 | K41: 0.06662323394 | M41: 56.03342061 | N41: 0.4638521055 | O41: 0.4411871848 | P41: =P42-V34 -> 10300 | Q41: 156.0334206 | R41: 0.6786231455 | S41: -15.44172039 | T41: 0.001519852311 | U41: 3.377819712 | V41: 0.5672586816
B42: 6.305271662 | C42: 0.4199991029 | D42: 0.3928011981 | E42: =E43-K34 -> 940 | F42: 16.30527166 | G42: 0.6626752408 | H42: -1.668383293 | I42: 0.01413490382 | J42: 0.3145500173 | K42: 0.05039676224 | M42: 74.51852724 | N42: 0.2501904501 | O42: 0.2275255294 | P42: =P43-V34 -> 10350 | Q42: 124.5185272 | R42: 0.5987799649 | S42: -16.399056 | T42: 0.00164032587 | U42: 3.645568071 | V42: 0.5015994335
B43: 6.277073028 | C43: -0.3540829202 | D43: -0.381280825 | E43: =K33 -> 960 | F43: 6.277073028 | G43: 0.3615937881 | H43: -1.666092828 | I43: 0.01450015665 | J43: 0.3226781436 | K43: 0.0277146946 | M43: 97.12914192 | N43: 0.03755849338 | O43: 0.01489357269 | P43: =V33 -> 10400 | Q43: 97.12914192 | R43: 0.514980149 | S43: -16.70367707 | T43: 0.001691282698 | U43: 3.758817876 | V43: 0.4322189924
B44: 1.710072676 | C44: -1.112203346 | D44: -1.139401251 | E44: =E43+K34 -> 980 | F44: 1.710072676 | G44: 0.1330089654 | H44: -0.9449568625 | I44: 0.008317391371 | J44: 0.1850904422 | K44: 0.01024381461 | M44: 73.95218389 | N44: -0.1740536419 | O44: -0.1967185626 | P44: =P43+V34 -> 10450 | Q44: 73.95218389 | R44: 0.4309116527 | S44: -16.31047403 | T44: 0.001667032699 | U44: 3.704923084 | V44: 0.3622626579
B45: 0.3176788614 | C45: -1.855007156 | D45: -1.88220506 | E45: =E44+K34 -> 1000 | F45: 0.3176788614 | G45: 0.03179368237 | H45: -0.3121126136 | I45: 0.002763011026 | J45: 0.0614864577 | K45: 0.002456106986 | M45: 54.88856555 | N45: -0.3846556915 | O45: -0.4073206122 | P45: =P44+V34 -> 10500 | Q45: 54.88856555 | R45: 0.3502462635 | S45: -15.26601964 | T45: 0.001571786002 | U45: 3.493240561 | V45: 0.2948771979
B46: 0.03958902481 | C46: -2.583101008 | D46: -2.610298912 | E46: =E45+$K$34 -> 1020 | F46: 0.03958902481 | G46: 0.004895229001 | H46: -0.06182634206 | I46: 0.0005491637582 | J46: 0.01222077432 | K46: 0.000378929597 | M46: 39.66853769 | N46: -0.5942572525 | O46: -0.6169221732 | P46: =P45+$V$34 -> 10550 | Q46: 39.66853769 | R46: 0.2761700326 | S46: -13.69720715 | T46: 0.001418530836 | U46: 3.152636202 | V46: 0.2328082028
B47: 0.003302531625 | C47: -3.297056218 | D47: -3.324254122 | E47: =E46+$K$34 -> 1040 | F47: 0.003302531625 | G47: 0.0004884594889 | H47: -0.007561634164 | I47: 6.73102305e-05 | J47: 0.001497883143 | K47: 3.786387809e-05 | M47: 27.88748103 | N47: -0.8028677859 | O47: -0.8255327066 | P47: =P46+$V$34 -> 10600 | Q47: 27.88748103 | R47: 0.2110255786 | S47: -11.78397461 | T47: 0.001226168434 | U47: 2.725117353 | V47: 0.1780913866
B48: 0.0001856335646 | C48: -3.99741145 | D48: -4.024609355 | E48: =E47+$K$34 -> 1060 | F48: 0.0001856335646 | G48: 3.201551996e-05 | H48: -0.0005869819305 | I48: 5.232833648e-06 | J48: 0.0001164484693 | K48: 2.484278117e-06 | M48: 19.05446082 | N48: -1.010496619 | O48: -1.03316154 | P48: =P47+$V$34 -> 10650 | Q48: 19.05446082 | R48: 0.1561287092 | S48: -9.72419839 | T48: 0.001015763804 | U48: 2.257500268 | V48: 0.1318918451
B49: Put: TV | C49: =ROUND(NORMSDIST(C38),4) -> 0.9999 | D49: =ROUND(NORMSDIST(D38), 4) -> 0.9999 | E49: =E38 -> 860 | F49: =(E38*EXP(-1*$F$34*$F$36)*NORMSDIST(-1*D38))-($F$33*EXP(-1*$K$35*$F$36)*NORMSDIST(-1*C38)) -> 0.00070136163 | G49: =EXP(-1*$K$35*$F$36)*((NORMSDIST(C38))-1) -> -0.000111946211 | H49: =((-1*(($F$33*((1/SQRT(2*PI()))*EXP(-1*POWER(C38,2)/2))*$F$35*EXP(-1*$F$36*$K$35)))/(2*SQRT($F$36))-($K$35*$F$33*NORMSDIST(-1*C38)*EXP(-1*$F$36*$K$35))+($F$34*E38*EXP(-1*$F$34*$F$36)*NORMSDIST(-1*D38))))/365 -> -0.001878373209 | I49: =I38 -> 1.70330037e-05 | J49: 0.0003790426644 | K49: =(-1*E38*$F$36*EXP(-1*$F$34*$F$36)*NORMSDIST(-1*D38)*EXP(-1*$K$35*$F$36))/100 -> -8.797566976e-06 | M49: Put: TV | N49: =ROUND(NORMSDIST(N38),4) -> 0.8667 | O49: =ROUND(NORMSDIST(O38), 4) -> 0.8618 | P49: =P38 -> 10150 | Q49: =(P38*EXP(-1*$Q$34*$Q$36)*NORMSDIST(-1*O38))-($Q$33*EXP(-1*$V$35*$Q$36)*NORMSDIST(-1*N38)) -> 15.9804806 | R49: =EXP(-1*$V$35*$Q$36)*((NORMSDIST(N38))-1) -> -0.1332591642 | S49: =((-1*(($Q$33*((1/SQRT(2*PI()))*EXP(-1*POWER(N38,2)/2))*$Q$35*EXP(-1*$Q$36*$V$35)))/(2*SQRT($Q$36))-($V$35*$Q$33*NORMSDIST(-1*N38)*EXP(-1*$Q$36*$V$35))+($Q$34*P38*EXP(-1*$Q$34*$Q$36)*NORMSDIST(-1*O38))))/365 -> -8.176210041 | T49: =T38 -> 0.0009129290893 | U49: 2.028953636 | V49: =(-1*P38*$Q$36*EXP(-1*$Q$34*$Q$36)*NORMSDIST(-1*O38)*EXP(-1*$V$35*$Q$36))/100 -> -0.1152226676
B50: =IF(E50<$F$33, F50, F50-(E50-$F$33)) -> 0.0170117576 | C50: =ROUND(NORMSDIST(C39),4) -> 0.9978 | D50: =ROUND(NORMSDIST(D39), 4) -> 0.9976 | E50: 880 | F50: 0.0170117576 | G50: -0.00221952247 | H50: -0.02967313418 | I50: 0.000269690025 | J50: 0.006001526653 | K50: -0.0001746818683 | M50: =IF(P50<$Q$33, Q50, Q50-(P50-$Q$33)) -> 24.17695213 | N50: =ROUND(NORMSDIST(N39),4) -> 0.8144 | O50: =ROUND(NORMSDIST(O39), 4) -> 0.8083 | P50: 10200 | Q50: 24.17695213 | R50: -0.1855794308 | S50: -10.11973704 | T50: 0.001134624847 | U50: 2.521664867 | V50: -0.1606194274
B51: =IF(E51<$F$33, F51, F51-(E51-$F$33)) -> 0.2104609267 | C51: 0.9782 | D51: 0.9768 | E51: 900 | F51: 0.2104609267 | G51: -0.02174926477 | H51: -0.2205518561 | I51: 0.002011720098 | J51: 0.04476766163 | K51: -0.001715316931 | M51: =IF(P51<$Q$33, Q51, Q51-(P51-$Q$33)) -> 35.31887338 | N51: 0.7513 | O51: 0.7441 | P51: 10250 | Q51: 35.31887338 | R51: -0.2487104132 | S51: -11.93035572 | T51: 0.001344436735 | U51: 2.987964601 | V51: -0.2154992195
B52: 1.434316363 | C52: 0.887 | D52: 0.8817 | E52: 920 | F52: 1.434316363 | G52: -0.1129856499 | H52: -0.8082428946 | I52: =I41 -> 0.007418034026 | J52: 0.1650766613 | K52: -0.008938954073 | M52: 49.91280699 | N52: 0.6786 | O52: 0.6705 | P52: 10300 | Q52: 49.91280699 | R52: -0.3213768545 | S52: -13.40212215 | T52: 0.001519852311 | U52: 3.377819712 | V52: -0.2788135968
B53: 5.863807458 | C53: 0.6628 | D53: 0.6528 | E53: 940 | F53: 5.863807458 | G53: -0.3372014792 | H53: -1.521281484 | I53: 0.01413490382 | J53: 0.3145500173 | K53: -0.02680808203 | M53: 68.3682019 | N53: 0.5988 | O53: 0.59 | P53: 10350 | Q53: 68.3682019 | R53: -0.4012200351 | S53: -14.3495568 | T53: 0.00164032587 | U53: 3.645568071 | V53: -0.3485799918
B54: 5.823724138 | C54: 0.3616 | D54: 0.3515 | E54: 960 | F54: 15.82372414 | G54: -0.6382829319 | H54: -1.515030635 | I54: 0.01450015665 | J54: 0.3226781436 | K54: -0.05113280593 | M54: 90.94910487 | N54: 0.515 | O54: 0.5059 | P54: 10400 | Q54: 90.94910487 | R54: -0.485019851 | S54: -14.6442769 | T54: 0.001691282698 | U54: 3.758817876 | V54: -0.4220675799
B55: 1.244839099 | C55: 0.133 | D55: 0.1273 | E55: 980 | F55: 31.2448391 | G55: -0.8668677546 | H55: -0.7899342838 | I55: 0.008317391371 | J55: 0.1850904422 | K55: -0.07024634219 | M55: 67.74243512 | N55: 0.4309 | O55: 0.422 | P55: 10450 | Q55: 117.7424351 | R55: -0.5690883473 | S55: -14.2411729 | T55: 0.001667032699 | U55: 3.704923084 | V55: -0.4961310614
B56: -0.1594394023 | C56: 0.0318 | D56: 0.0299 | E56: 1000 | F56: 49.8405606 | G56: -0.9680830376 | H56: -0.15312965 | I56: 0.002763011026 | J56: 0.0614864577 | K56: -0.07967670607 | M56: 48.64910507 | N56: 0.3502 | O56: 0.3419 | P56: 10500 | Q56: 148.6491051 | R56: -0.6497537365 | S56: -13.18681755 | T56: 0.001571786002 | U56: 3.493240561 | V56: -0.5676236683
B57: -0.4494139255 | C57: 0.0049 | D57: 0.0045 | E57: 1020 | F57: 69.55058607 | G57: -0.9949814909 | H57: 0.1011170065 | I57: 0.0005491637582 | J57: 0.01222077432 | K57: -0.08339653972 | M57: 33.39936549 | N57: 0.2762 | O57: 0.2686 | P57: 10550 | Q57: 183.3993655 | R57: -0.7238299674 | S57: -11.6081041 | T57: 0.001418530836 | U57: 3.152636202 | V57: -0.6337998104
B58: -0.4975851053 | C58: 0.0005 | D58: 0.0004 | E58: 1040 | F58: 89.50241489 | G58: -0.9993882604 | H58: 0.1593420993 | I58: 6.73102305e-05 | J58: 0.001497883143 | K58: -0.0853802617 | M58: 21.58859712 | N58: 0.211 | O58: 0.2045 | P58: 10600 | Q58: 221.5885971 | R58: -0.7889744214 | S58: -9.684970595 | T58: 0.001226168434 | U58: 2.725117353 | V58: -0.6926237736
B59: -0.51258669 | C59: 0 | D59: 0 | E59: 1060 | F59: 109.4874133 | G59: -0.9998447044 | H59: 0.1702771365 | I59: 5.232833648e-06 | J59: 0.0001164484693 | K59: -0.08705829756 | M59: 12.72586519 | N59: 0.1561 | O59: 0.1508 | P59: 10650 | Q59: 262.7258652 | R59: -0.8438712908 | S59: -7.615293415 | T59: 0.001015763804 | U59: 2.257500268 | V59: -0.7429304621
